{"text_format":"1","workbook":"xlsx","n_sheets":4,"sheets":["Setup","Otazky","Odpovedi","List2"],"not_rendered":{"charts":0,"images":5,"macros":1,"external_links":0,"defined_names":1,"comments":0,"pivot_tables":0},"unopened":[],"bounds":{"document_bytes":16777216,"sheet_cells":100000,"rows_first":2000,"rows_last":500,"rows_between":2000,"halvings":0,"cell_chars":16384,"cell_head_chars":4096},"cells_cut":0,"cells_raw":0,"read":"whole","date_system":"1900"}

{"sheet":"Setup","index":0,"n_rows":18,"n_cols":18,"rows_kept":18,"cut":false,"hidden":true,"merged":[[0,0,0,4]]}
["Nastavení testu"]
["verze 2014.1a"]
["Platnost do","2020-01-10"]
["Celkový počet otázek v generátoru",297,{"$f":"SUM(C7:C15)","v":297},"Název generátoru","Generátor testových otázek pro základní kvalifikační stupeň \nodborné způsobilosti pojišťovacích zprostředkovatelů",null,null,"kategorie","kategorie","kategorie","kategorie","kategorie","kategorie","kategorie","kategorie","kategorie","spravna","spravna"]
["Počet otázek do testu",{"$f":"SUM(B7:B15)","v":50},null,"Nadpis 1 stránky","Zkušební test odborného minima znalostí pro základní kvalifikační stupeň odborné způsobilosti pojišťovacích zprostředkovatelů",null,null,1,2,3,4,5,6,7,8,9,true,false]
["Celkový čas testu","00:30:00",null,"Zápatí 2.řádek","© Allianz pojišťovna, a. s., Allianz Akademie"]
["Počet otázek do testu v kategorii 1",7,{"$f":"DCOUNT(Otazky!$A$1:$F$501,\"indexot\",$H$4:$H$5)","v":46},"Zápatí 1.řádek","Pouze pro vnitřní potřebu"]
["Počet otázek do testu v kategorii 2",23,{"$f":"DCOUNT(Otazky!$A$1:$F$501,\"indexot\",$I$4:$I$5)","v":113},"Verze:","2016.01"]
["Počet otázek do testu v kategorii 3",15,{"$f":"DCOUNT(Otazky!$A$1:$F$501,\"indexot\",$J$4:$J$5)","v":96}]
["Počet otázek do testu v kategorii 4",0,{"$f":"DCOUNT(Otazky!$A$1:$F$501,\"indexot\",$K$4:$K$5)","v":28}]
["Počet otázek do testu v kategorii 5",5,{"$f":"DCOUNT(Otazky!$A$1:$F$501,\"indexot\",$L$4:$L$5)","v":14}]
["Počet otázek do testu v kategorii 6",0,{"$f":"DCOUNT(Otazky!$A$1:$F$501,\"indexot\",$M$4:$M$5)","v":0}]
["Počet otázek do testu v kategorii 7",0,{"$f":"DCOUNT(Otazky!$A$1:$F$501,\"indexot\",$N$4:$N$5)","v":0}]
["Počet otázek do testu v kategorii 8",0,{"$f":"DCOUNT(Otazky!$A$1:$F$501,\"indexot\",$O$4:$O$5)","v":0}]
["Počet otázek do testu v kategorii 9",0,{"$f":"DCOUNT(Otazky!$A$1:$F$501,\"indexot\",$P$4:$P$5)","v":0}]
["Počet \"NEPRAVDA\"",{"$f":"DCOUNT(INDIRECT(\"Odpovedi!$A$1:$D$\"&TEXT(B4*3+1,0),TRUE),2,$R$4:$R$5)","v":594}]
["Počet \"PRAVDA\"",{"$f":"DCOUNT(INDIRECT(\"Odpovedi!$A$1:$D$\"&TEXT(B4*3+1,0),TRUE),2,$Q$4:$Q$5)","v":297}]
["Režim přípravy",false]

{"sheet":"Otazky","index":1,"n_rows":516,"n_cols":7,"rows_kept":516,"cut":false,"hidden":true,"merged":[]}
["cislo_otazky","Text otázky","indexot","jednicka","kategorie","Pouzit","Poradi"]
[3010065,"Zákon o pojišťovnictví upravuje:",1,1,1,false]
[4970471,"Upravuje zákon o pojišťovnictví též provozování pojišťovací a zajišťovací činnosti pojišťovnou nebo zajišťovnou se sídlem na území České republiky?",2,1,1,false]
[4386495,"Upravuje zákon o pojišťovnictví též provozování pojišťovací činnosti na území České republiky pojišťovnou se sídlem na území jiného členského státu Evropské unie a na území státu Evropského hospodářského prostoru?",3,1,1,false]
[4621699,"Pojišťovací činnost je zejména:",4,1,1,false]
[5341258,"Co je to zajišťovací činnost?",5,1,1,false]
[8282069,"Co je také obsahem zajišťovací činnosti?",6,1,1,false]
[6036173,"Je obsahem pojišťovací činnosti též uzavírání pojistných smluv pojišťovnou?",7,1,1,false]
[7419248,"Soubor uzavřených pojistných smluv se nazývá:",8,1,1,false]
[6208866,"Co je pojistný kmen?",9,1,1,false]
[398485,"Jaké jsou základní druhy pojistných podmínek?",10,1,1,false,8]
[8029212,"Činnosti směřující k zabezpečení trvání a aktualizaci stavu pojistných nebo zajišťovacích smluv se nazývají:",11,1,1,false]
[8913277,"Co je to správa pojištění nebo zajištění?",12,1,1,false]
[1807346,"Jak se nazývá osoba, která disponuje většinou hlasovacích práv společníků v jiné obchodní korporaci?",13,1,1,false,40]
[5861344,"Je střetem zájmů, když je členem dozorčího orgánu tuzemské pojišťovny člen vlády České republiky?",14,1,1,false]
[7365733,"Co je dokladem o bezúhonnosti občana České republiky?",15,1,1,false]
[6228419,"Je dokladem o dosaženém vzdělání posuzované fyzické osoby doklad obdobný vysvědčení o maturitní zkoušce?",16,1,1,false]
[6387799,"Pojištění se podle zákona o pojišťovnictví člení na odvětví:",17,1,1,false]
[5042350,"Patří důchodové pojištění podle zákona o důchodovém pojištění mezi odvětví životního pojištění?",18,1,1,false]
[3555626,"Je odvětvím životního pojištění též doplňkové penzijní spoření nebo penzijní připojištění se státním příspěvkem?",19,1,1,false]
[8960012,"Kdo uděluje povolení k provozování tuzemské pojišťovny?",20,1,1,false]
[6789212,"Musí pojišťovna nebo zajišťovna jednat s odbornou péčí?",21,1,1,false]
[549535,"Uděluje Česká národní banka povolení k provozování činnosti tuzemské zajišťovny?",22,1,1,false,9]
[9399792,"Může zajišťovna ztěžovat výkon dohledu?",23,1,1,false]
[6830345,"Zpracovává pojišťovna osobní údaje?",24,1,1,false]
[9469716,"Kdo provádí v ČR dohled v pojišťovnictví?",25,1,1,false]
[6133510,"Je finanční úřad orgánem, který podle zákona o pojišťovnictví provádí dohled v pojišťovnictví?",26,1,1,false]
[4271401,"Provádí Česká národní banka dohled v pojišťovnictví?",27,1,1,false]
[9844912,"Může Česká národní banka jako orgán dohledu v pojišťovnictví ukládat sankce?",28,1,1,false]
[37832,"Může finanční úřad ukládat pojišťovnám sankce za porušení zákona o pojišťovnictví?",29,1,1,false,2]
[8093714,"Může Česká národní banka uložit pokutu tuzemské pojišťovně?",30,1,1,false]
[9897138,"Lze udělit povolení k provozování pojišťovací činnosti tuzemskou pojišťovnou, pokud nejsou splněny podmínky zákona o pojišťovnictví?",31,1,1,false]
[948658,"Kdo vydává povolení k provozování pojišťovací činnosti tuzemské pojišťovně?",32,1,1,false,19]
[5283720,"Musí mít tuzemská pojišťovna povolení k provozování pojišťovací činnosti?",33,1,1,false]
[9184663,"Je pojišťovací zprostředkovatel v době výkonu zprostředkovatelské činnosti povinen zachovávat mlčenlivost o pojištění klientů a o činnosti pojišťovny?",34,1,1,false]
[8638452,"Je pojišťovací zprostředkovatel povinen zachovávat mlčenlivost o pojištění klientů a o činnosti pojišťovny i po ukončení činnosti pro pojišťovnu?",35,1,1,false]
[1182235,"Fyzické osobě, která poruší zákonnou povinnost mlčenlivosti, hrozí:",36,1,1,false,32]
[7710433,"Může Česká národní banka zaměstnanci pojišťovny uložit pokutu za porušení povinnosti mlčenlivosti?",37,1,1,false]
[5022201,"Může Česká národní banka pojišťovacímu zprostředkovateli uložit pokutu za porušení povinnosti mlčenlivosti?",38,1,1,false]
[4272810,"Osobním údajem je:",39,1,1,false]
[7338243,"Co je to citlivý osobní údaj?",40,1,1,false]
[2565162,"Jak se provádí likvidace osobních údajů?",41,1,1,false]
[2989752,"Nezávislý orgán, který provádí  dozor nad dodržováním zákonných povinností při zpracování osobních údajů, se nazývá:",42,1,1,false]
[5274943,"Stanoví zákon o ochraně osobních údajů náležitosti smlouvy mezi správcem (pojišťovnou) a zpracovatelem (pojišťovacím zprostředkovatelem), na základě které pojišťovací zprostředkovatel (jako zpracovatel osobních údajů) zpracovává pro pojišťovnu osobní údaj",43,1,1,false]
[2117489,"Musí mít písemnou formu smlouva, na základě které pojišťovací zprostředkovatel (jako zpracovatel osobních údajů) zpracovává pro pojišťovnu osobní údaje?",44,1,1,false,44]
[7370491,"Je pojišťovací zprostředkovatel podle zákona o některých opatřeních proti legalizaci výnosů z trestné činnosti a financování terorismu (tzv. praní špinavých peněz) povinen identifikovat pojistníka, když jde o podezřelý obchod?",45,1,1,false]
[3644566,"Stanoví zákon o některých opatřeních proti legalizaci výnosů z trestné činnosti a financování terorismu způsob provádění identifikace fyzické osoby?",46,1,1,false]
[598098,"Kdo je oprávněn uzavřít pojistnou smlouvu za pojistníka - právnickou osobu?",47,1,2,false,10]
[6785231,"Je za pojistníka - právnickou osobu oprávněn uzavřít pojistnou smlouvu jeho prokurista?",48,1,2,false]
[3955643,"Je statutární orgán oprávněn uzavřít pojistnou smlouvu za právnickou osobu?",49,1,2,false]
[4623973,"Co je právní osobnost fyzické osoby?",50,1,2,false]
[7955288,"Může být pojištěným i pětileté dítě?",51,1,2,false]
[6327432,"Musí být pojistníkovi vždy alespoň 18 let?",52,1,2,false]
[2987733,"Co je předpokladem tzv. objektivní odpovědnosti (povinnosti nahradit újmu)?",53,1,2,false]
[7051629,"Zájemcem o pojištění je:",54,1,2,false]
[4600540,"Účastníky pojištění jsou:",55,1,2,false]
[7107006,"Pojistitelem je:",56,1,2,false]
[1003015,"Pojistníkem je:",57,1,2,false,22]
[4443771,"Pojištěným je:",58,1,2,false]
[610150,"Oprávněnou osobou je:",59,1,2,false,12]
[7020071,"Obmyšleným je:",60,1,2,false]
[9938135,"Může být pojistník zároveň pojištěným?",61,1,2,false]
[4115462,"Osoba, která má zájem o uzavření pojistné smlouvy s pojistitelem, se nazývá:",62,1,2,false]
[4663926,"Jaké jsou smluvní strany pojistné smlouvy?",63,1,2,false]
[8152199,"Osoba určená pojistníkem, které vznikne právo na pojistné plnění v případě smrti pojištěného, se nazývá:",64,1,2,false]
[9161379,"Co je pojistná hodnota?",65,1,2,false]
[1086842,"Co je pojistná částka?",66,1,2,false,25]
[2326444,"Nejvyšší možná majetková újma, která může nastat v důsledku pojistné události, se nazývá?",67,1,2,false]
[1934665,"Smluvně dohodnutá finanční částka v pojistné smlouvě, která určuje horní hranici pojistného plnění, se nazývá?",68,1,2,false,41]
[3924,"Co je pojistné?",69,1,2,false,1]
[4489383,"Pojistné stanovené za pojistné období se nazývá?",70,1,2,false]
[6828295,"Pojistné stanovené na celou dobu, na kterou bylo pojištění sjednáno, se nazývá?",71,1,2,false]
[6800695,"Kdy je splatné běžné pojistné?",72,1,2,false]
[2791088,"Kdy je splatné jednorázové pojistné?",73,1,2,false]
[6472132,"Úplata za soukromé pojištění se nazývá:",74,1,2,false]
[2347335,"Co je škodná událost?",75,1,2,false]
[8341721,"Co je pojistná událost?",76,1,2,false]
[6373577,"Skutečnost, ze které vznikla újma a která by mohla být důvodem vzniku práva na pojistné plnění, se nazývá:",77,1,2,false]
[3607964,"Nahodilá událost krytá pojištěním se nazývá:",78,1,2,false]
[9789935,"Je pojistitel povinen po oznámení pojistné události zahájit šetření této události?",79,1,2,false]
[1963625,"Pojistné plnění je splatné:",80,1,2,false,42]
[158741,"V jaké lhůtě musí pojistitel oznámit, že nelze ukončit šetření škodné události?",81,1,2,false,4]
[799834,"Promlčecí doba u pojistného plnění ze životního pojištění je:",82,1,2,false,15]
[5072235,"Promlčecí doba u pojistného plnění z neživotního pojištění je:",83,1,2,false]
[8042996,"Je pojistitel povinen poskytnout přiměřenou zálohu na pojistné plnění?",84,1,2,false]
[8641820,"Kdy začíná běžet promlčecí doba práva na pojistné plnění u životního pojištění?",85,1,2,false]
[7687024,"Kdy začíná běžet promlčecí doba práva na pojistné plnění u neživotního pojištění?",86,1,2,false]
[9901386,"Má pojistitel právo odmítnout plnění z pojistné smlouvy?",87,1,2,false]
[9583374,"Co je časová cena pojištěné věci?",88,1,2,false]
[8437192,"Jak se stanoví časová cena?",89,1,2,false]
[7551395,"Co je nová cena pojištěné věci?",90,1,2,false]
[5056809,"Cena, kterou měla věc bezprostředně před pojistnou událostí, se nazývá:",91,1,2,false]
[2371500,"Cena, za kterou lze v daném místě a v daném čase pořídit věc stejnou nebo srovnatelnou, a to jako věc stejnou nebo novou, se nazývá:",92,1,2,false]
[7809629,"Co je odkupné v životním pojištění?",93,1,2,false]
[8723635,"V jakém případě je pojistitel oprávněn snížit pojistnou částku v životním pojištění?",94,1,2,false]
[6171437,"Výše technické rezervy vytvořené z nespotřebované části pojistného vypočtená pojistně matematickými metodami k datu zániku životního pojištění ponížená o poplatek za předčasný zánik pojištění se nazývá:",95,1,2,false]
[7633572,"Jaké údaje o osobách (pojistitel, pojistník, oprávněná osoba, pojištěný) musí být uvedeny v pojistné smlouvě?",96,1,2,false]
[8705542,"Co je pojistka?",97,1,2,false]
[8489510,"Kdo vystaví pojistníkovi pojistku jako potvrzení o uzavření pojistné smlouvy?",98,1,2,false]
[2012972,"Je pojistitel povinen při ztrátě pojistky vystavit pojistníkovi její druhopis?",99,1,2,false,43]
[7191489,"Kdo vydává pojistné podmínky?",100,1,2,false]
[1284232,"Může pojistná smlouva odkazovat na pojistné podmínky?",101,1,2,false,34]
[9496116,"S pojistnými podmínkami musí být pojistník prokazatelně seznámen, a to:",102,1,2,false]
[5265127,"Je pojistná smlouva smlouvou o finančních službách?",103,1,2,false]
[1119104,"Musí být pojistná smlouva uzavřena vždy písemně?",104,1,2,false,29]
[949142,"Musí být písemná pojistná smlouva vždy pojistníkem podepsaná?",105,1,2,false,20]
[8658125,"Není-li ujednána doba vzniku pojištění, pojištění vzniká:",106,1,2,false]
[5808886,"Vzniká pojištění prvním dnem po uzavření pojistné smlouvy?",107,1,2,false]
[7898472,"Může se pojištění vztahovat i na dobu před uzavřením pojistné smlouvy?",108,1,2,false]
[7879105,"Může pojištění vzniknout již dnem, ve kterém je uzavřena pojistná smlouva?",109,1,2,false]
[8564038,"Za jakých podmínek lze změnit pojistnou smlouvu?",110,1,2,false]
[6503745,"Může pojistitel jednostranně změnit pojistnou smlouvu?",111,1,2,false]
[7076102,"Pojištění se přerušuje:",112,1,2,false]
[9059594,"Započítává se přerušení pojištění do délky pojistné doby?",113,1,2,false]
[1382434,"Která pojištění nelze přerušit?",114,1,2,false,37]
[1468967,"Lze přerušit povinné pojištění?",115,1,2,false,38]
[4419206,"Lze přerušit životní pojištění?",116,1,2,false]
[2813973,"Může pojištění zaniknout dohodou?",117,1,2,false]
[5268220,"Může pojištění zaniknout výpovědí?",118,1,2,false]
[6864830,"Lze každou pojistnou smlouvu vypovědět do 2 měsíců od jejího uzavření?",119,1,2,false]
[9571949,"Může pojištění zaniknout též pro neplacení pojistného?",120,1,2,false]
[5834749,"Může pojistník odstoupit od smlouvy, pokud ho pojistitel neupozornil na nesrovnalosti mezi nabízeným pojištěním a jeho požadavky?",121,1,2,false]
[3268883,"Pojištění zaniká též:",122,1,2,false]
[4173878,"Co je to škodové pojištění?",123,1,2,false]
[6211699,"Jak se nazývá pojištění, jehož účelem je náhrada újmy vzniklé v důsledku pojistné události?",124,1,2,false]
[2714815,"Lze úrazové pojištění sjednat jako škodové i obnosové pojištění?",125,1,2,false]
[4730734,"Pojištění věci nebo souboru věcí lze sjednat:",126,1,2,false]
[5982171,"Čím je určena horní hranice pojistného plnění u škodového pojištění?",127,1,2,false]
[4705277,"Co je podpojištění?",128,1,2,false]
[7978709,"Snižuje pojistitel pojistné plnění v případě podpojištění?",129,1,2,false]
[9205167,"Co je přepojištění?",130,1,2,false]
[4260534,"Patří náklady na odvrácení vzniku bezprostředně hrozící pojistné události mezi tzv. zachraňovací náklady?",131,1,2,false]
[7265208,"Komu hradí pojistitel zachraňovací náklady?",132,1,2,false]
[613856,"Zaniká  pojištění oznámením o změně vlastníka pojištěného majetku pojistiteli?",133,1,2,false,13]
[2854900,"Kdy vzniká množné pojištění?",134,1,2,false]
[1145807,"Jaké jsou formy množného pojištění?",135,1,2,false,30]
[5605970,"Co je to obnosové pojištění?",136,1,2,false]
[1101825,"Jak lze sjednat životní pojištění?",137,1,2,false,27]
[7360231,"Jak se nazývá pojištění, jehož účelem je získat v případě pojistné události pojistné plnění nezávisle na rozsahu vzniklé újmy?",138,1,2,false]
[2222098,"Jaké nároky má pojištěný v případě úrazu způsobeného jednáním třetí osoby, má-li sjednáno úrazové pojištění jako pojištění obnosové?",139,1,2,false,45]
[1100243,"Je pojistitel oprávněn požadovat údaje o zdravotním stavu nebo příčině smrti pojištěného?",140,1,2,false,26]
[949573,"Zjišťování zdravotního stavu nebo příčiny smrti pojištěného se provádí na základě:",141,1,2,false,21]
[1325287,"Musí být zájemci o pojištění oznámeny před uzavřením pojistné smlouvy informace o pojistiteli?",142,1,2,false,36]
[2302028,"Musí být zájemci o pojištění oznámeny před uzavřením pojistné smlouvy některé informace písemně?",143,1,2,false,46]
[7435160,"Informace o pojistiteli musí být zájemci o pojištění oznámeny:",144,1,2,false]
[4720700,"Má pojistník během trvání pojistné smlouvy právo na poskytnutí informace o každoročním stavu bonusů?",145,1,2,false]
[4184272,"Jestliže pojistitel změnil adresu svého sídla:",146,1,2,false]
[3707985,"Je povinným pojištěním pojištění odpovědnosti z provozu vozidla?",147,1,2,false]
[5768559,"Povinná pojištění odpovědnosti lze sjednat:",148,1,2,false]
[4566693,"Pro koho je povinné pojištění odpovědnosti určeno?",149,1,2,false]
[2607717,"Které z uvedených profesí mají povinnost se pojistit pro případ své odpovědnosti?",150,1,2,false]
[7053372,"Pro účely pojištění odpovědnosti z provozu vozidla se vozidlem rozumí:",151,1,2,false]
[2385231,"Pro účely pojištění odpovědnosti z provozu vozidla se za poškozeného považuje:",152,1,2,false]
[7258184,"Pro účely pojištění odpovědnosti z provozu vozidla se pojištěným rozumí:",153,1,2,false]
[9408733,"Bezprostředně po uzavření pojistné smlouvy o pojištění odpovědnosti z provozu vozidla, týkající se tuzemského vozidla, pojistitel:",154,1,2,false]
[4523858,"Jsou pojistitelé, provozující pojištění odpovědnosti z provozu vozidla povinni přispívat do Fondu zábrany škod?",155,1,2,false]
[8853167,"Při sjednávání výše pojistného za pojištění odpovědnosti z provozu vozidla je pojistitel povinen zohlednit:",156,1,2,false]
[3716192,"Z pojištění odpovědnosti z provozu vozidla pojistitel mimo jiné nehradí:",157,1,2,false]
[4949259,"Pojištění odpovědnosti z provozu vozidla zaniká též:",158,1,2,false]
[5658628,"Při provozu vozidla na pozemní komunikaci je jeho řidič povinen mít u sebe, mimo zákonem stanovených výjimek:",159,1,2,false]
[4679814,"Je odborná činnost spočívající v uzavírání pojistných smluv jménem a na účet pojišťovny zprostředkovatelskou činností v pojišťovnictví?",160,1,3,false]
[1043379,"Je zprostředkovatelskou činností v pojišťovnictví též odborná činnost spočívající v předkládání návrhů na uzavření pojistných smluv?",161,1,3,false,23]
[1046311,"Jak se nazývá odborná činnost spočívající v uzavírání pojistných smluv jménem a na účet pojišťovny?",162,1,3,false,24]
[5631632,"Pojišťovacím zprostředkovatelem se rozumí:",163,1,3,false]
[2468322,"Jak se nazývá pojišťovací zprostředkovatel, který při své zprostředkovatelské činnosti v pojišťovnictví zastupuje zájemce o pojištění, nikoli pojišťovnu?",164,1,3,false]
[7055297,"Je vázaný pojišťovací zprostředkovatel oprávněn vykonávat zprostředkovatelskou činnost pro více pojišťoven?",165,1,3,false]
[7378234,"Je pojišťovací agent oprávněn vykonávat zprostředkovatelskou činnost pro více pojišťoven?",166,1,3,false]
[6032835,"Je podřízený pojišťovací zprostředkovatel oprávněn vykonávat zprostředkovatelskou činnost pro více pojišťovacích makléřů?",167,1,3,false]
[5573793,"Je vázaný pojišťovací zprostředkovatel oprávněn na sebe smluvně vázat jiné pojišťovací zprostředkovatele?",168,1,3,false]
[7311637,"Je podřízený pojišťovací zprostředkovatel oprávněn na sebe smluvně vázat další podřízené pojišťovací zprostředkovatele?",169,1,3,false]
[390951,"Kteří pojišťovací zprostředkovatelé jsou povinni uzavřít pojistnou smlouvu na pojištění profesní odpovědnosti ze své činnosti?",170,1,3,false,7]
[8149470,"Je pojišťovací agent a výhradní pojišťovací agent povinen uzavřít pojistnou smlouvu na pojištění profesní odpovědnosti ze své činnosti?",171,1,3,false]
[8259533,"Je pojišťovací makléř povinen uzavřít pojistnou smlouvu na pojištění profesní odpovědnosti ze své činnosti?",172,1,3,false]
[4647484,"Je vázaný pojišťovací zprostředkovatel povinen uzavřít pojistnou smlouvu na pojištění profesní odpovědnosti ze své činnosti?",173,1,3,false]
[4704212,"Kterým pojišťovacím zprostředkovatelům může pojišťovna dát plnou moc k  inkasu pojistného?",174,1,3,false]
[8747283,"Je pojišťovací agent oprávněn inkasovat pojistné?",175,1,3,false]
[8353301,"Je pojišťovací makléř oprávněn inkasovat pojistné?",176,1,3,false]
[1204560,"Je vázaný pojišťovací zprostředkovatel oprávněn inkasovat pojistné?",177,1,3,false,33]
[7017848,"Je podřízený pojišťovací zprostředkovatel oprávněn inkasovat pojistné?",178,1,3,false]
[8351787,"Kdo podle zákona vede registr, ve kterém jsou vedeni pojišťovací zprostředkovatelé?",179,1,3,false]
[2403558,"Vede Česká národní banka registr pojišťovacích zprostředkovatelů?",180,1,3,false]
[2962479,"Jakým způsobem jsou evidováni pojišťovací zprostředkovatelé, působící na území České republiky?",181,1,3,false]
[2518014,"Může na území České republiky vykonávat zprostředkovatelskou činnost neregistrovaný pojišťovací zprostředkovatel?",182,1,3,false]
[2029511,"O zápisu pojišťovacího zprostředkovatele do registru vedeného Českou národní bankou rozhoduje:",183,1,3,false]
[3335720,"Kdo může nahlížet do registru vedeného Českou národní bankou, ve kterém jsou vedeni pojišťovací zprostředkovatelé?",184,1,3,false]
[6769998,"Mohou do registru, ve kterém jsou vedeni pojišťovací zprostředkovatelé, nahlížet i klienti (pojistníci, pojištění apod.)?",185,1,3,false]
[3783447,"Jaké jsou kvalifikační stupně odborné způsobilosti pojišťovacích zprostředkovatelů?",186,1,3,false]
[2669247,"Je pojišťovací zprostředkovatel povinen si doplňovat odborné znalosti?",187,1,3,false]
[608404,"U kterých pojišťovacích zprostředkovatelů je nutnou podmínkou registrace získání odborné praxe?",188,1,3,false,11]
[9876261,"Je odborná praxe nutnou podmínkou registrace pro vázaného pojišťovacího zprostředkovatele?",189,1,3,false]
[2191710,"Jakého kvalifikačního stupně odborné způsobilosti musí dosáhnout vázaný pojišťovací zprostředkovatel?",190,1,3,false]
[6763307,"Jakého kvalifikačního stupně odborné způsobilosti musí dosáhnout podřízený pojišťovací zprostředkovatel?",191,1,3,false]
[2869683,"Jakého kvalifikačního stupně odborné způsobilosti musí dosáhnout výhradní pojišťovací agent?",192,1,3,false]
[1962054,"Jakého kvalifikačního stupně odborné způsobilosti musí dosáhnout pojišťovací makléř?",193,1,3,false]
[1825444,"Jakého kvalifikačního stupně odborné způsobilosti musí dosáhnout pojišťovací agent?",194,1,3,false]
[2688764,"Je pojišťovací zprostředkovatel - fyzická osoba povinen oznámit ztrátu důvěryhodnosti České národní bance?",195,1,3,false]
[3113330,"Z čeho se ověřuje bezúhonnost pojišťovacího zprostředkovatele - fyzické osoby?",196,1,3,false]
[9671054,"Co musí pojišťovací zprostředkovatel – fyzická osoba udělat, pokud přestane splňovat některou z podmínek důvěryhodnosti?",197,1,3,false]
[5878619,"Je pojišťovací zprostředkovatel – právnická osoba povinna oznámit ztrátu důvěryhodnosti České národní bance?",198,1,3,false]
[1488711,"Co musí pojišťovací zprostředkovatel – právnická osoba udělat, pokud přestane splňovat některou z podmínek důvěryhodnosti?",199,1,3,false,39]
[6335073,"Stanoví zákon nutné náležitosti žádosti o zápis do registru, ve kterém jsou vedeni pojišťovací zprostředkovatelé?",200,1,3,false]
[3641078,"Platí pojišťovací zprostředkovatel správní poplatek za podání žádosti o registraci České národní bance?",201,1,3,false]
[5562784,"Je pojišťovací zprostředkovatel povinen oznámit České národní bance změnu údajů zapisovaných do registru, ve kterém jsou vedeni pojišťovací zprostředkovatelé?",202,1,3,false]
[153502,"Je pojišťovací zprostředkovatel povinen k žádosti o zápis do registru, ve kterém jsou vedeni pojišťovací zprostředkovatelé, přiložit výpis z obchodního rejstříku?",203,1,3,false,3]
[9688843,"Musí mít vázaný pojišťovací zprostředkovatel – právnická osoba odpovědného zástupce?",204,1,3,false]
[8035335,"Musí mít pojišťovací agent – právnická osoba odpovědného zástupce?",205,1,3,false]
[1513314,"Musí mít pojišťovací makléř – právnická osoba odpovědného zástupce?",206,1,3,false]
[7402011,"Musí mít podřízený pojišťovací zprostředkovatel – právnická osoba odpovědného zástupce?",207,1,3,false]
[5143023,"Který pojišťovací zprostředkovatel musí mít s pojišťovnou uzavřenou písemnou smlouvu?",208,1,3,false]
[2573674,"Musí mít pojišťovací agent s pojišťovnou uzavřenu písemnou smlouvu?",209,1,3,false]
[7695662,"Musí mít pojišťovací makléř s pojišťovnou uzavřenou písemnou smlouvu?",210,1,3,false]
[1962875,"Musí mít vázaný pojišťovací zprostředkovatel s pojišťovnou uzavřenou písemnou smlouvu?",211,1,3,false]
[4636701,"Kdo poskytuje úplatu za zprostředkování pojištění (tzv. provizi) pojišťovacímu agentovi?",212,1,3,false]
[7063832,"Kdo poskytuje úplatu za zprostředkování pojištění (tzv. provizi) vázanému pojišťovacímu zprostředkovateli?",213,1,3,false]
[7811612,"Kdo poskytuje úplatu za zprostředkování pojištění (tzv. provizi) podřízenému pojišťovacímu zprostředkovateli?",214,1,3,false]
[3355747,"Kdo poskytuje úplatu za zprostředkování pojištění (tzv. provizi) pojišťovacímu makléři?",215,1,3,false]
[7735916,"Je výše úplaty za zprostředkování pojištění (tzv. provize) od každé pojišťovny pro každého zprostředkovatele stejná?",216,1,3,false]
[8432691,"Musí podřízenému pojišťovacímu zprostředkovateli poskytovat úplatu za zprostředkování pojištění (tzv. provizi) klient?\nza zprostředkování pojištění (tzv. provizi) klient?",217,1,3,false]
[4205524,"Stanoví zákon o pojišťovacích zprostředkovatelích a likvidátorech pojistných událostí výši úplaty za zprostředkování pojištění (tzv. provize)?",218,1,3,false]
[5172547,"Stanoví zákon o pojišťovacích zprostředkovatelích a likvidátorech pojistných událostí konkrétní podmínky nároku na úplatu za zprostředkování pojištění (tzv. provizi)?",219,1,3,false]
[1789911,"Poskytují všechny pojišťovny úplatu za zprostředkování pojištění (tzv. provizi) ve stejné výši?",220,1,3,false]
[257521,"Je označení (pojmenování) úplat za zprostředkování pojištění (tzv. provizí) u všech pojišťoven stejné?",221,1,3,false,6]
[9270586,"Musí vázanému pojišťovacímu zprostředkovateli poskytovat úplatu za zprostředkování pojištění (tzv. provizi) klient?",222,1,3,false]
[858709,"Kteří pojišťovací zprostředkovatelé jsou povinni předkládat roční výkaz své činnosti?",223,1,3,false,17]
[4587384,"Je vázaný pojišťovací zprostředkovatel povinen předkládat roční výkaz své činnosti?",224,1,3,false]
[4797232,"Je pojišťovací agent povinen předkládat roční výkaz své činnosti?",225,1,3,false]
[9355065,"Je pojišťovací makléř povinen předkládat roční výkaz své činnosti?",226,1,3,false]
[1994432,"Je výhradní pojišťovací agent povinen předkládat roční výkaz své činnosti?",227,1,3,false]
[9512733,"Na jak dlouho může Česká národní banka pozastavit činnost vázaného pojišťovacího zprostředkovatele?",228,1,3,false]
[7523627,"Může Česká národní banka pozastavit činnost vázaného pojišťovacího zprostředkovatele?",229,1,3,false]
[1168556,"Na jak dlouho může Česká národní banka pozastavit činnost podřízeného pojišťovacího zprostředkovatele?",230,1,3,false,31]
[9075934,"Na jak dlouho může Česká národní banka pozastavit činnost pojišťovacího agenta?",231,1,3,false]
[3202310,"Na jak dlouho může Česká národní banka pozastavit činnost pojišťovacího makléře?",232,1,3,false]
[4152648,"Může  Česká národní banka pozastavit činnost pojišťovacího agenta?",233,1,3,false]
[688230,"Může Česká národní banka pozastavit činnost pojišťovacího makléře?",234,1,3,false,14]
[4796694,"Jak vysokou pokutu může Česká národní banka uložit vázanému pojišťovacímu zprostředkovateli za uvedení nesprávných údajů v žádosti o zápis do registru, ve kterém jsou vedeni pojišťovací zprostředkovatelé?",235,1,3,false]
[5700672,"Jak vysokou pokutu může Česká národní banka uložit vázanému pojišťovacímu zprostředkovateli, který znemožní nebo závažně ztíží výkon dohledu?",236,1,3,false]
[175629,"Jak vysokou pokutu může Česká národní banka uložit pojišťovacímu agentovi za uvedení nesprávných  údajů v žádosti o zápis do registru, ve kterém jsou vedeni pojišťovací zprostředkovatelé?",237,1,3,false,5]
[4565090,"Jak vysokou pokutu může Česká národní banka uložit pojišťovacímu agentovi, který znemožní nebo závažně ztíží výkon dohledu?",238,1,3,false]
[9828712,"Jak vysokou pokutu může Česká národní banka uložit pojišťovacímu makléři za uvedení nesprávných údajů v žádosti o zápis do registru, ve kterém jsou vedeni pojišťovací zprostředkovatelé?",239,1,3,false]
[3116828,"Jak vysokou pokutu může Česká národní banka uložit pojišťovacímu makléři, který znemožní nebo závažně ztíží výkon dohledu?",240,1,3,false]
[2890541,"Může Česká národní banka uložit pojišťovacímu zprostředkovateli pokutu i v částce  1 000 000 Kč?",241,1,3,false]
[4030215,"Může Česká národní banka uložit pojišťovacímu zprostředkovateli pokutu až do výše 10 000 000 Kč?",242,1,3,false]
[1103748,"Je vázaný pojišťovací zprostředkovatel povinen klientovi předložit osvědčení o svém zápisu do registru, ve kterém jsou vedeni pojišťovací zprostředkovatelé?",243,1,3,false,28]
[2780488,"Je vázaný pojišťovací zprostředkovatel povinen klientovi sdělit způsoby svého odměňování?",244,1,3,false]
[5933251,"Může pojišťovací zprostředkovatel poskytovat klientovi neoprávněné výhody finanční, materiální či nemateriální povahy?",245,1,3,false]
[1301011,"Je pojišťovací agent povinen klientovi předložit osvědčení o svém zápisu do registru, ve kterém jsou vedeni pojišťovací zprostředkovatelé?",246,1,3,false,35]
[2594582,"Je pojišťovací agent povinen klientu sdělit způsoby svého odměňování?",247,1,3,false]
[898319,"Je pojišťovací makléř povinen klientovi předložit osvědčení o svém zápisu do registru, ve kterém jsou vedeni pojišťovací zprostředkovatelé?",248,1,3,false,18]
[6308763,"Je pojišťovací makléř povinen klientu sdělit způsoby svého odměňování?",249,1,3,false]
[8487465,"Je vázaný pojišťovací zprostředkovatel povinen pojišťovně předložit osvědčení o svém zápisu do registru, ve kterém jsou vedeni pojišťovací zprostředkovatelé?",250,1,3,false]
[8596257,"Je pojišťovací agent povinen pojišťovně předložit osvědčení o svém zápisu do registru, ve kterém jsou vedeni pojišťovací zprostředkovatelé?",251,1,3,false]
[2710188,"Je pojišťovací makléř povinen pojišťovně předložit osvědčení o svém zápisu do registru, ve kterém jsou vedeni pojišťovací zprostředkovatelé?",252,1,3,false]
[3922472,"Je vázaný pojišťovací zprostředkovatel povinen zachovávat mlčenlivost o činnostech pojišťovny a ve věcech s nimi souvisejících?",253,1,3,false]
[8998389,"Je pojišťovací agent povinen zachovávat mlčenlivost o činnostech pojišťovny a ve věcech s nimi souvisejících?",254,1,3,false]
[9507333,"Je pojišťovací makléř povinen zachovávat mlčenlivost o činnostech pojišťovny a ve věcech s nimi souvisejících?",255,1,3,false]
[5145417,"Jakou činnost provádí osoba, registrovaná jen jako samostatný likvidátor pojistných událostí, na základě smlouvy s pojišťovnou?",256,1,4,false]
[3611414,"Je samostatný likvidátor pojistných událostí oprávněn spolupracovat s více pojišťovnami?",257,1,4,false]
[1447675,"Je osoba registrovaná jako samostatný likvidátor pojistných událostí povinna uzavřít pojistnou smlouvu na pojištění profesní odpovědnosti ze své činnosti?",258,1,4,false]
[111135,"Kdo vede registr, ve kterém jsou evidování samostatní likvidátoři pojistných událostí?",259,1,4,false]
[1979030,"Musí být samostatný likvidátor pojistných událostí evidován?",260,1,4,false]
[9675517,"O zápisu samostatného likvidátora pojistných událostí  do registru rozhoduje:",261,1,4,false]
[6060542,"Kdo může nahlížet do registru, ve kterém jsou evidováni samostatní likvidátoři pojistných událostí ?",262,1,4,false]
[357004,"Jaký kvalifikační stupeň odborné způsobilosti musí splňovat samostatný likvidátor pojistných událostí?",263,1,4,false]
[1488004,"Je samostatný likvidátor  pojistných událostí  povinen si doplňovat odborné znalosti absolvováním doškolovacího kurzu?",264,1,4,false]
[2908847,"Je získání odborné praxe nutnou podmínkou registrace samostatného likvidátora pojistných událostí?",265,1,4,false]
[3579790,"Je samostatný likvidátor pojistných událostí – fyzická osoba povinen oznámit ztrátu důvěryhodnosti České národní bance?",266,1,4,false]
[8641547,"Z čeho se ověřuje bezúhonnost samostatného likvidátora pojistných událostí - fyzické osoby?",267,1,4,false]
[6607521,"Z čeho se ověřuje důvěryhodnost samostatného likvidátora pojistných událostí - fyzické osoby?",268,1,4,false]
[130863,"Je samostatný likvidátor pojistných událostí – právnická osoba povinný oznámit ztrátu důvěryhodnosti České národní bance?",269,1,4,false]
[6672043,"Jaké jsou důsledky odnětí licence samostatného likvidátora pojistných událostí – právnické osoby pro porušení podmínek stanovených zákonem o pojišťovacích zprostředkovatelích a samostatných likvidátorů pojistných událostí?",270,1,4,false]
[7589885,"Stanoví zákon nutné náležitosti žádosti o zápis samostatného likvidátora pojistných událostí do registru:",271,1,4,false]
[7587214,"Platí samostatný likvidátor pojistných událostí správní poplatek při podání žádosti do registru?",272,1,4,false]
[6217663,"Je samostatný likvidátor pojistných událostí povinen oznámit České národní bance změnu údajů zapisovaných do registru?",273,1,4,false]
[3834006,"Musí mít samostatný likvidátor pojistných událostí – právnická osoba odpovědného zástupce?",274,1,4,false]
[2336906,"Musí mít samostatný likvidátor pojistných událostí s pojišťovnou, jejímž jménem a na jejíž účet jedná, uzavřenou smlouvu ?",275,1,4,false]
[7147420,"Na jak dlouho může Česká národní banka pozastavit činnost samostatného likvidátora pojistných událostí?",276,1,4,false]
[8633237,"Může Česká národní banka pozastavit činnost samostatného likvidátora pojistných událostí?",277,1,4,false]
[5798711,"Jak vysokou pokutu může Česká národní banka uložit samostatnému likvidátorovi pojistných událostí za uvedení nesprávných údajů v žádosti o zápis do registru samostatných likvidátorů pojistných událostí?",278,1,4,false]
[1308514,"Jak vysokou pokutu může Česká národní banka uložit samostatnému likvidátorovi pojistných událostí, který znemožní nebo závažně ztíží výkon dohledu?",279,1,4,false]
[8135429,"Je samostatný likvidátor pojistných událostí povinen klientovi předložit osvědčení o svém zápisu do registru samostatných likvidátorů pojistných událostí?",280,1,4,false]
[4460714,"Je samostatný likvidátor pojistných událostí povinen klientovi sdělit způsoby svého odměňování?",281,1,4,false]
[4441768,"Může samostatný likvidátor pojistných událostí poskytovat klientovi neoprávněné výhody finanční, materiální či nemateriální povahy?",282,1,4,false]
[9502877,"Je samostatný likvidátor pojistných událostí povinen pojišťovně předložit osvědčení o svém zápisu do registru samostatných likvidátorů pojistných událostí?",283,1,4,false]
[3681734,"Podle zákona o daních z příjmů se „soukromým životním pojištěním“ zejména rozumí?",284,1,5,false,50]
[9933615,"Daňové zvýhodnění „soukromého životního pojištění“ je zakotveno v :",285,1,5,false]
[4187617,"Je „soukromé životní pojištění“ při splnění podmínek stanovených zákonem o daních z příjmů daňově zvýhodněno?",286,1,5,false]
[4271680,"Mezi nutné podmínky pro daňové zvýhodnění „soukromého životního pojištění“ podle zákona o daních z příjmů patří například minimální doba pojištění:",287,1,5,false]
[9856282,"Mezi nutné podmínky pro daňové zvýhodnění „soukromého životního pojištění“ podle zákona o daních z příjmů patří například věk poplatníka, kdy mu vzniká nárok na výplatu pojistného plnění při dožití:",288,1,5,false]
[2467101,"Jaká je maximální částka pojistného na „soukromé životní pojištění“, kterou si poplatník - fyzická osoba může odečíst od svého daňového základu za zdaňovací období při splnění podmínek stanovených zákonem o daních z příjmů ?",289,1,5,false,47]
[5915772,"Je odkupné ze „soukromého životního pojištění“ zdaněno daní z příjmů ?",290,1,5,false]
[3601373,"Je pojistné plnění ze „soukromého životního pojištění“ v případě dožití zdaněno daní z příjmů?",291,1,5,false,49]
[824721,"Co upravují tzv. kodexy etiky v oblasti pojišťovnictví?",292,1,5,false,16]
[5189223,"Obchodní jednání vede pojišťovací zprostředkovatel:",293,1,5,false]
[3367080,"S klienty, kteří projevují spekulativní úmysly, pojišťovací zprostředkovatel:",294,1,5,false,48]
[6894423,"Pojistného podvodu se dopustí ten, kdo například při uzavírání pojistné smlouvy nebo při uplatnění práva na plnění z pojištění uvede:",295,1,5,false]
[6504655,"Pojistného podvodu se dopustí ten, kdo:",296,1,5,false]
[3972175,"Může být pachatel potrestán odnětím svobody na jeden rok až pět let nebo peněžitým trestem, způsobí-li pojistným podvodem větší škodu, tj. škodu dosahující částky nejméně 50 000 Kč?",297,1,5,false]
[null,null,298,1,null,false]
[null,null,299,1,null,false]
[null,null,300,1,null,false]
[null,null,301,1,null,false]
[null,null,302,1,null,false]
[null,null,303,1,null,false]
[null,null,304,1,null,false]
[null,null,305,1,null,false]
[null,null,306,1,null,false]
[null,null,307,1,null,false]
[null,null,308,1,null,false]
[null,null,309,1,null,false]
[null,null,310,1,null,false]
[null,null,311,1,null,false]
[null,null,312,1,null,false]
[null,null,313,1,null,false]
[null,null,314,1,null,false]
[null,null,315,1,null,false]
[null,null,316,1,null,false]
[null,null,317,1,null,false]
[null,null,318,1,null,false]
[null,null,319,1,null,false]
[null,null,320,1,null,false]
[null,null,321,1,null,false]
[null,null,322,1,null,false]
[null,null,323,1,null,false]
[null,null,324,1,null,false]
[null,null,325,1,null,false]
[null,null,326,1,null,false]
[null,null,327,1,null,false]
[null,null,328,1,null,false]
[null,null,329,1,null,false]
[null,null,330,1,null,false]
[null,null,331,1,null,false]
[null,null,332,1,null,false]
[null,null,333,1,null,false]
[null,null,334,1,null,false]
[null,null,335,1,null,false]
[null,null,336,1,null,false]
[null,null,337,1,null,false]
[null,null,338,1,null,false]
[null,null,339,1,null,false]
[null,null,340,1,null,false]
[null,null,341,1,null,false]
[null,null,342,1,null,false]
[null,null,343,1,null,false]
[null,null,344,1,null,false]
[null,null,345,1,null,false]
[null,null,346,1,null,false]
[null,null,347,1,null,false]
[null,null,348,1,null,false]
[null,null,349,1,null,false]
[null,null,350,1,null,false]
[null,null,351,1,null,false]
[null,null,352,1,null,false]
[null,null,353,1,null,false]
[null,null,354,1,null,false]
[null,null,355,1,null,false]
[null,null,356,1,null,false]
[null,null,357,1,null,false]
[null,null,358,1,null,false]
[null,null,359,1,null,false]
[null,null,360,1,null,false]
[null,null,361,1,null,false]
[null,null,362,1,null,false]
[null,null,363,1,null,false]
[null,null,364,1,null,false]
[null,null,365,1,null,false]
[null,null,366,1,null,false]
[null,null,367,1,null,false]
[null,null,368,1,null,false]
[null,null,369,1,null,false]
[null,null,370,1,null,false]
[null,null,371,1,null,false]
[null,null,372,1,null,false]
[null,null,373,1,null,false]
[null,null,374,1,null,false]
[null,null,375,1,null,false]
[null,null,376,1,null,false]
[null,null,377,1,null,false]
[null,null,378,1,null,false]
[null,null,379,1,null,false]
[null,null,380,1,null,false]
[null,null,381,1,null,false]
[null,null,382,1,null,false]
[null,null,383,1,null,false]
[null,null,384,1,null,false]
[null,null,385,1,null,false]
[null,null,386,1,null,false]
[null,null,387,1,null,false]
[null,null,388,1,null,false]
[null,null,389,1,null,false]
[null,null,390,1,null,false]
[null,null,391,1,null,false]
[null,null,392,1,null,false]
[null,null,393,1,null,false]
[null,null,394,1,null,false]
[null,null,395,1,null,false]
[null,null,396,1,null,false]
[null,null,397,1,null,false]
[null,null,398,1,null,false]
[null,null,399,1,null,false]
[null,null,400,1,null,false]
[null,null,401,1,null,false]
[null,null,402,1,null,false]
[null,null,403,1,null,false]
[null,null,404,1,null,false]
[null,null,405,1,null,false]
[null,null,406,1,null,false]
[null,null,407,1,null,false]
[null,null,408,1,null,false]
[null,null,409,1,null,false]
[null,null,410,1,null,false]
[null,null,411,1,null,false]
[null,null,412,1,null,false]
[null,null,413,1,null,false]
[null,null,414,1,null,false]
[null,null,415,1,null,false]
[null,null,416,1,null,false]
[null,null,417,1,null,false]
[null,null,418,1,null,false]
[null,null,419,1,null,false]
[null,null,420,1,null,false]
[null,null,421,1,null,false]
[null,null,422,1,null,false]
[null,null,423,1,null,false]
[null,null,424,1,null,false]
[null,null,425,1,null,false]
[null,null,426,1,null,false]
[null,null,427,1,null,false]
[null,null,428,1,null,false]
[null,null,429,1,null,false]
[null,null,430,1,null,false]
[null,null,431,1,null,false]
[null,null,432,1,null,false]
[null,null,433,1,null,false]
[null,null,434,1,null,false]
[null,null,435,1,null,false]
[null,null,436,1,null,false]
[null,null,437,1,null,false]
[null,null,438,1,null,false]
[null,null,439,1,null,false]
[null,null,440,1,null,false]
[null,null,441,1,null,false]
[null,null,442,1,null,false]
[null,null,443,1,null,false]
[null,null,444,1,null,false]
[null,null,445,1,null,false]
[null,null,446,1,null,false]
[null,null,447,1,null,false]
[null,null,448,1,null,false]
[null,null,449,1,null,false]
[null,null,450,1,null,false]
[null,null,451,1,null,false]
[null,null,452,1,null,false]
[null,null,453,1,null,false]
[null,null,454,1,null,false]
[null,null,455,1,null,false]
[null,null,456,1,null,false]
[null,null,457,1,null,false]
[null,null,458,1,null,false]
[null,null,459,1,null,false]
[null,null,460,1,null,false]
[null,null,461,1,null,false]
[null,null,462,1,null,false]
[null,null,463,1,null,false]
[null,null,464,1,null,false]
[null,null,465,1,null,false]
[null,null,466,1,null,false]
[null,null,467,1,null,false]
[null,null,468,1,null,false]
[null,null,469,1,null,false]
[null,null,470,1,null,false]
[null,null,471,1,null,false]
[null,null,472,1,null,false]
[null,null,473,1,null,false]
[null,null,474,1,null,false]
[null,null,475,1,null,false]
[null,null,476,1,null,false]
[null,null,477,1,null,false]
[null,null,478,1,null,false]
[null,null,479,1,null,false]
[null,null,480,1,null,false]
[null,null,481,1,null,false]
[null,null,482,1,null,false]
[null,null,483,1,null,false]
[null,null,484,1,null,false]
[null,null,485,1,null,false]
[null,null,486,1,null,false]
[null,null,487,1,null,false]
[null,null,488,1,null,false]
[null,null,489,1,null,false]
[null,null,490,1,null,false]
[null,null,491,1,null,false]
[null,null,492,1,null,false]
[null,null,493,1,null,false]
[null,null,494,1,null,false]
[null,null,495,1,null,false]
[null,null,496,1,null,false]
[null,null,497,1,null,false]
[null,null,498,1,null,false]
[null,null,499,1,null,false]
[null,null,500,1,null,false]
[null,null,null,1]
[null,null,null,1]
[null,null,null,1]
[null,null,null,1]
[null,null,null,1]
[null,null,null,1]
[null,null,null,1]
[null,null,null,1]
[null,null,null,1]
[null,null,null,1]
[null,null,null,1]
[null,null,null,1]
[null,null,null,1]
[null,null,null,1]
[null,null,null,1]

{"sheet":"Odpovedi","index":2,"n_rows":1501,"n_cols":10,"rows_kept":1501,"cut":false,"hidden":true,"merged":[]}
["cislo odpovedi","cislo otazky","spravna","text","volba","index_odpovedi","Výsledek","Vyhodnocení",{"$f":"SUM(H2:H1501)","v":43},{"$f":"SUM(I2:I1501)","v":50}]
[1299841,1,false,"Pouze podmínky provozování zprostředkovatelské činnosti.",1,101,false,{"$f":"IF(AND(C2,G2),1,0)","v":0},{"$f":"IF(G2,1,0)","v":0}]
[2375926,1,true,"Podmínky provozování pojišťovací a zajišťovací činnosti a výkon dohledu v pojišťovnictví.",2,102,false,0,0]
[4720791,1,false,"Podmínky uzavírání pojistné smlouvy.",3,103,false,0,0]
[7841835,2,false,"Ne.",3,104,false,0,0]
[7386784,2,true,"Ano.",2,105,false,0,0]
[3902694,2,false,"Ano, ale pouze provozování pojišťovací činnosti.",1,106,false,0,0]
[3277693,3,false,"Ne.",1,107,false,0,0]
[5259507,3,true,"Ano.",2,108,false,0,0]
[8368632,3,false,"Ano, ale pouze do 31. 12. 2004.",3,109,false,0,0]
[3752559,4,false,"Činnost pojišťovacích zprostředkovatelů.",2,110,false,0,0]
[7841867,4,true,"Přebírání pojistných rizik na základě uzavřených pojistných smluv a plnění z nich.",3,111,false,0,0]
[1725678,4,false,"Spolupráce pojišťovny a zajišťovny.",1,112,false,0,0]
[994043,5,false,"Poskytování okamžité pomoci pojistníkovi, pokud nastane pojistná událost.",1,113,false,0,0]
[2304550,5,true,"Přebírání pojistných rizik na základě uzavřených smluv, kterými se zajišťovna zavazuje poskytnout pojišťovně ve sjednaném rozsahu plnění, nastane-li nahodilá událost ve smlouvě blíže označená, a pojistitel se zavazuje platit zajistiteli ve smlouvě určenou",2,114,false,0,0]
[5401226,5,false,"Provádění dozoru nad činností pojišťovny.",3,115,false,0,0]
[1901605,6,false,"Uzavírání zajistných smluv s pojistníkem.",1,116,false,0,0]
[4404251,6,true,"Uzavírání zajistných smluv mezi pojišťovnou a zajišťovnou.",3,117,false,0,0]
[2759961,6,false,"Asistenční služba zajišťující pomoc pojištěným.",2,118,false,0,0]
[4476889,7,false,"Ne, neboť uzavírání pojistných smluv patří do zajišťovací činnosti.",2,119,false,0,0]
[5848932,7,true,"Ano.",3,120,false,0,0]
[1539320,7,false,"Ano, jedná-li se o fyzické osoby.",1,121,false,0,0]
[6923600,8,false,"Příslušenství pojistného kmene.",2,122,false,0,0]
[7779427,8,true,"Pojistný kmen.",3,123,false,0,0]
[1060946,8,false,"Fond pojistných smluv.",1,124,false,0,0]
[3044392,9,false,"Databáze pojistných zprostředkovatelů.",1,125,false,0,0]
[3485044,9,true,"Soubor uzavřených pojistných smluv.",2,126,false,0,0]
[7365115,9,false,"Uzavřené smlouvy na životní pojištění.",3,127,false,0,0]
[6993823,10,false,"Základní pojistné podmínky a vedlejší pojistné podmínky.",2,128,false,0,0]
[3675937,10,true,"Všeobecné pojistné podmínky, zvláštní nebo doplňkové pojistné podmínky.",1,129,true,1,1]
[8799883,10,false,"Všeobecné pojistné podmínky, vedlejší a důležité pojistné podmínky.",3,130,false,0,0]
[2292181,11,false,"Klasifikace pojistných smluv.",3,131,false,0,0]
[2097881,11,true,"Správa pojištění nebo zajištění.",2,132,false,0,0]
[1208002,11,false,"Klientský servis.",1,133,false,0,0]
[170973,12,false,"Výplata provizí pojišťovacím zprostředkovatelům.",1,134,false,0,0]
[8777054,12,true,"Správa pojištění nebo zajištění jsou činnosti směřující k zabezpečení trvání a aktualizaci stavu pojistných nebo zajišťovacích smluv.",3,135,false,0,0]
[3348827,12,false,"Provádění dohledu nad pojišťovnami.",2,136,false,0,0]
[7838463,13,false,"Ovládaná osoba.",3,137,false,0,0]
[1629687,13,true,"Ovládající osoba.",1,138,true,1,1]
[2850619,13,false,"Dispoziční osoba.",2,139,false,0,0]
[8279011,14,false,"Ne, není.",3,140,false,0,0]
[4095275,14,true,"Ano, je.",2,141,false,0,0]
[2217163,14,false,"Není, pokud má povolení České národní banky.",1,142,false,0,0]
[5514462,15,false,"Výpis z obchodního rejstříku.",2,143,false,0,0]
[9508672,15,true,"Výpis z Rejstříku trestů.",3,144,false,0,0]
[5242719,15,false,"Doklad finančního úřadu o bezdlužnosti.",1,145,false,0,0]
[6765553,16,false,"Ano.",3,146,false,0,0]
[397125,16,true,"Ano, ale musí být vydaný příslušnou vzdělávací institucí.",1,147,false,0,0]
[1777189,16,false,"Ne.",2,148,false,0,0]
[187656,17,false,"Životní pojištění a důchodové pojištění.",1,149,false,0,0]
[9179276,17,true,"Životní pojištění a neživotní pojištění.",3,150,false,0,0]
[3910349,17,false,"Neživotní pojištění a úrazové pojištění.",2,151,false,0,0]
[1474333,18,false,"Ano, patří za předpokladu, že bylo uzavřeno před 1.1. 2000.",1,152,false,0,0]
[2885775,18,true,"Nepatří.",2,153,false,0,0]
[8216268,18,false,"Ano, patří.",3,154,false,0,0]
[7905331,19,false,"Ano, je za předpokladu, že bylo uzavřeno před 1.1.2000.",2,155,false,0,0]
[8671515,19,true,"Není.",3,156,false,0,0]
[6247842,19,false,"Ano.",1,157,false,0,0]
[5769228,20,false,"Příslušný finanční úřad.",3,158,false,0,0]
[4828971,20,true,"Česká národní banka.",2,159,false,0,0]
[1653037,20,false,"Nadřízená zajišťovna.",1,160,false,0,0]
[8545951,21,false,"Nemusí.",3,161,false,0,0]
[7646872,21,true,"Ano, musí.",2,162,false,0,0]
[5380121,21,false,"Nemusí, dbá pouze na to, aby nepoškozovala majetek třetích osob.",1,163,false,0,0]
[3947341,22,false,"Ne, neuděluje.",2,164,false,0,0]
[2319776,22,true,"Ano, uděluje.",1,165,true,{"$f":"IF(AND(C66,G66),1,0)","v":1},{"$f":"IF(G66,1,0)","v":1}]
[6855181,22,false,"Ano, pouze pokud se pojišťovna zabývá životním pojištěním.",3,166,false,0,0]
[8665836,23,false,"Ano, může, pokud je to v jejím zájmu.",3,167,false,0,0]
[3858261,23,true,"Nesmí. Musí postupovat tak, aby nedocházelo ke ztížení nebo znemožnění výkonu dohledu.",1,168,false,0,0]
[5782818,23,false,"Může, pokud má pobočky v tuzemsku i v zahraničí.",2,169,false,0,0]
[9378654,24,false,"Ano, zpracovává, kromě rodných čísel.",3,170,false,0,0]
[4857626,24,true,"Ano, zpracovává, včetně rodných čísel.",1,171,false,0,0]
[6496270,24,false,"Ne, nezpracovává.",2,172,false,0,0]
[6728656,25,false,"Ministerstvo průmyslu a obchodu.",3,173,false,0,0]
[2461551,25,true,"Česká národní banka.",2,174,false,0,0]
[347703,25,false,"Ministerstvo pro místní rozvoj.",1,175,false,0,0]
[8309731,26,false,"Ano, je.",2,176,false,0,0]
[8937196,26,true,"Ne, není.",3,177,false,0,0]
[5389153,26,false,"Ano, je, kromě případů, kdy určí Ministerstvo průmyslu a obchodu jinak.",1,178,false,0,0]
[5405231,27,false,"Ne, neprovádí.",3,179,false,0,0]
[4116151,27,true,"Ano, provádí.",2,180,false,0,0]
[1080925,27,false,"Provádí pouze v případě, že je požádáno soudem.",1,181,false,0,0]
[2769002,28,false,"Ne, sankce nemohou být ukládány.",1,182,false,0,0]
[4332579,28,true,"Ano, Česká národní banka má právo ukládat sankce.",2,183,false,0,0]
[6633425,28,false,"Ano, o sankcích rozhoduje příslušný finanční úřad.",3,184,false,0,0]
[8131155,29,false,"Ano.",3,185,false,0,0]
[312158,29,true,"Ne.",1,186,true,1,1]
[8121567,29,false,"Ano, avšak pouze pojišťovnám, které nejsou členy ČAP.",2,187,false,0,0]
[8511088,30,false,"Ne.",3,188,false,0,0]
[5264279,30,true,"Ano, a to až do výše 50 000 000 Kč.",2,189,false,0,0]
[3114446,30,false,"Ano, musí však pokutu projednat nejprve s Poslaneckou sněmovnou ČR.",1,190,false,0,0]
[9609721,31,false,"Ano, lze. Podmínky určuje příslušný finanční úřad.",3,191,false,0,0]
[6861567,31,true,"Nelze.",2,192,false,0,0]
[4268016,31,false,"Ano, lze, pokud jsou splněny směrnice Ministerstva financí.",1,193,false,0,0]
[6437708,32,false,"Příslušný finanční úřad.",3,194,false,0,0]
[1136518,32,true,"Česká národní banka.",2,195,true,1,1]
[291431,32,false,"Příslušný městský nebo okresní úřad  – živnostenský odbor.",1,196,false,0,0]
[2447664,33,false,"Nemusí, pokud je to akciová společnost.",1,197,false,0,0]
[8991049,33,true,"Musí, povolení vydává Česká národní banka.",3,198,false,0,0]
[4699638,33,false,"Pokud neprovozuje životní pojištění, nemusí.",2,199,false,0,0]
[8432636,34,false,"Ne.",2,200,false,0,0]
[4032349,34,true,"Ano.",1,201,false,0,0]
[8712093,34,false,"Ano, pouze pokud pracuje pro více pojišťoven.",3,202,false,0,0]
[4611216,35,false,"Ano, jen po dobu 10 let.",3,203,false,0,0]
[3973782,35,true,"Ano.",1,204,false,0,0]
[4081275,35,false,"Ano, jen po dobu 5 let.",2,205,false,0,0]
[1048225,36,false,"Uložení pokuty až do výše průměrného výdělku.",1,206,false,0,0]
[2654088,36,true,"Uložení pokuty až do výše 50 000 Kč.",2,207,true,1,1]
[7191358,36,false,"Nic.",3,208,false,0,0]
[4889974,37,false,"Ne.",1,209,false,0,0]
[9737850,37,true,"Ano.",3,210,false,0,0]
[5738044,37,false,"Ano, ale pouze v době aktivního pracovního poměru.",2,211,false,0,0]
[2980993,38,false,"Ano, do výše 100 000 Kč.",2,212,false,0,0]
[4896557,38,true,"Ano, až do výše 50 000 Kč.",3,213,false,0,0]
[91637,38,false,"Ne.",1,214,false,0,0]
[6056078,39,false,"IČ právnické osoby.",3,215,false,0,0]
[388708,39,true,"Rodné číslo.",2,216,false,0,0]
[87961,39,false,"Číslo řidičského průkazu.",1,217,false,0,0]
[4773770,40,false,"Jakýkoliv údaj týkající se fyzické osoby.",3,218,false,0,0]
[3740635,40,true,"Osobní údaj vypovídající o národnostním, rasovém nebo etnickém původu, politických postojích, členství v odborových organizacích, náboženství a filozofickém přesvědčení, odsouzení za trestný čin, zdravotním stavu a sexuálním životě subjektu údajů a jakýko",1,219,false,0,0]
[4642165,40,false,"Jméno, příjmení, adresa, datum narození.",2,220,false,0,0]
[7906205,41,false,"Zapečetěním a uzavřením do trezoru na Ministerstvu financí.",3,221,false,0,0]
[2083200,41,true,"Zničením nosičů osobních údajů, fyzickým vymazáním nebo trvalým vyloučením osobních údajů z dalšího zpracování.",2,222,false,0,0]
[2019866,41,false,"Libovolným způsobem.",1,223,false,0,0]
[1681914,42,false,"Úřad pro ochranu hospodářské soutěže.",1,224,false,0,0]
[3654632,42,true,"Úřad pro ochranu osobních údajů.",2,225,false,0,0]
[6734892,42,false,"Živnostenský úřad.",3,226,false,0,0]
[4873872,43,false,"Nestanoví.",1,227,false,0,0]
[5192649,43,true,"Ano. Je to rozsah, účel zpracovávaných údajů, doba, na kterou se uzavírá a záruky o technickém a organizačním zabezpečení údajů.",2,228,false,0,0]
[9404165,43,false,"Ano, ale jen pokud taková smlouva trvá déle než 1 rok.",3,229,false,{"$f":"IF(AND(C130,G130),1,0)","v":0},{"$f":"IF(G130,1,0)","v":0}]
[3141078,44,false,"Musí jen v případě, kdy zpracovatel zpracovává osobní údaje pro více pojišťoven.",1,230,false,0,0]
[7190960,44,true,"Musí.",3,231,true,1,1]
[6134453,44,false,"Nemusí, pokud nezpracovává citlivé údaje.",2,232,false,0,0]
[5399555,45,false,"Není.",2,233,false,0,0]
[1192504,45,true,"Ano, je.",1,234,false,0,0]
[7423888,45,false,"Ano, ale jen jedná-li se o cizího státního příslušníka.",3,235,false,0,0]
[4774048,46,false,"V zákoně není stanoveno.",3,236,false,0,0]
[3965632,46,true,"Povinná osoba zaznamená a ověří z průkazu totožnosti identifikační údaje, jsou-li v něm uvedeny, a dále zaznamená druh a číslo průkazu totožnosti, stát, popřípadě orgán, který jej vydal, a dobu jeho platnosti; současně ověří shodu podoby s vyobrazením v p",1,237,false,0,0]
[4539684,46,false,"Ano, ale jen je-li pojistníkem cizí státní příslušník.",2,238,false,0,0]
[2746118,47,false,"Jakýkoliv zaměstnanec právnické osoby.",1,239,false,0,0]
[5216050,47,true,"Ti, kteří jsou k tomu oprávněni zakladatelským právním jednáním (přijetím stanov, zakladatelskou smlouvou, zakladatelskou listinou, zákonem nebo zaměstnanci při výkonu své funkce a zmocněnci.",2,240,true,1,1]
[5913553,47,false,"Pouze zmocněnec.",3,241,false,0,0]
[1374146,48,false,"Ne.",1,242,false,0,0]
[6708065,48,true,"Ano.",3,243,false,0,0]
[2434213,48,false,"Pouze se souhlasem finančního úřadu.",2,244,false,0,0]
[9447052,49,false,"Ne.",3,245,false,0,0]
[7709683,49,true,"Ano.",1,246,false,0,0]
[9393347,49,false,"Ano, avšak pouze při sjednání životního pojištění členů příslušného statutárního orgánu.",2,247,false,0,0]
[1802683,50,false,"Způsobilost pouze k právům.",2,248,false,0,0]
[1568693,50,true,"Způsobilost mít práva a povinnosti.",1,249,false,0,0]
[3163606,50,false,"Způsobilost pouze k povinnostem.",3,250,false,0,0]
[75036,51,false,"Ne.",1,251,false,0,0]
[1127245,51,true,"Ano.",2,252,false,0,0]
[1986119,51,false,"Ano, ale pouze z rozhodnutí soudu.",3,253,false,0,0]
[9237989,52,false,"Musí.",3,254,false,0,0]
[2371905,52,true,"Nemusí.",1,255,false,0,0]
[5176577,52,false,"Nemusí, pokud je to na základě rozhodnutí soudu.",2,256,false,0,0]
[9518298,53,false,"Zavinění.",3,257,false,0,0]
[100924,53,true,"Porušení  dobrých mravů, porušení zákona nebo porušení smluvní povinnosti, vznik újmy, příčinná souvislost mezi nimi.",1,258,false,0,0]
[1904684,53,false,"Porušení právní povinnosti, existence škody, existence příčinné souvislosti mezi nimi a zavinění.",2,259,false,0,0]
[2713497,54,false,"Jen osoba mladší 15 let.",2,260,false,0,0]
[1001779,54,true,"Osoba, která má zájem o uzavření pojistné smlouvy s pojistitelem.",1,261,false,0,0]
[5867766,54,false,"Jen osoba  s dlouhodobým  pobytem na území ČR.",3,262,false,0,0]
[6452301,55,false,"Pouze pojistník a pojištěná osoba, která má právo na pojistné plnění.",3,263,false,0,0]
[6026211,55,true,"Pojistitel a pojistník, jakožto smluvní strany a dále pojištěný a každá další osoba, které z pojištění vzniklo právo nebo povinnost.",2,264,false,0,0]
[2696938,55,false,"Pouze pojistitel a oprávněná osoba.",1,265,false,0,0]
[8382388,56,false,"Fyzická osoba, která je oprávněna ke sjednávání  pojištění.",2,266,false,0,0]
[8608141,56,true,"Osoba, která se pojistnou smlouvu zavázala poskytnout pojistné plnění v případě pojistné události.",3,267,false,0,0]
[2959568,56,false,"Ten, na jehož majetek bylo pojištění sjednáno.",1,268,false,0,0]
[4194228,57,false,"Osoba, která je oprávněna provozovat pojišťovací činnost.",2,269,false,0,0]
[9498428,57,true,"Osoba, která uzavřela s pojistitelem pojistnou smlouvu.",3,270,true,1,1]
[936292,57,false,"Pouze osoba, která má právo na pojistné plnění.",1,271,false,0,0]
[1446309,58,false,"Pouze osoba vstupující do dědického řízení a která má právo na pojistné plnění.",1,272,false,0,0]
[4820432,58,true,"Osoba, na jejíž život, zdraví, majetek, odpovědnost nebo jinou hodnotu pojistného zájmu se pojištění vztahuje.",3,273,false,0,0]
[1860539,58,false,"Osoba, která má zájem uzavřít pojistnou smlouvu.",2,274,false,0,0]
[3627792,59,false,"Osoba, která při sjednání pojištění zastupuje pojištěného.",2,275,false,0,0]
[6538312,59,true,"Osoba, které v důsledku pojistné události vznikne právo na pojistné plnění.",3,276,true,1,1]
[2544910,59,false,"Osoba, na kterou přechází v důsledku pojistné události povinnost platit pojistné.",1,277,false,0,0]
[2185639,60,false,"Osoba, která je povinna platit pojistné za pojistníka.",1,278,false,0,0]
[4656885,60,true,"Osoba, kterou určí pojistník a které vznikne právo na pojistné plnění v případě smrti pojištěného.",2,279,false,0,0]
[9937849,60,false,"Osoba, kterou chce pojistník pojistit.",3,280,false,0,0]
[5385851,61,false,"Ne, nikdy.",2,281,false,0,0]
[7044164,61,true,"Ano.",3,282,false,0,0]
[2437268,61,false,"Ano, ale pouze se souhlasem Ministerstva financí.",1,283,false,0,0]
[2028830,62,false,"Žadatel o pojištění.",2,284,false,0,0]
[5316521,62,true,"Zájemce o pojištění.",3,285,false,0,0]
[1141313,62,false,"Oprávněná osoba.",1,286,false,0,0]
[978339,63,false,"Pojistitel a obmyšlený.",1,287,false,0,0]
[6408057,63,true,"Pojistitel a pojistník.",3,288,false,0,0]
[4671516,63,false,"Pojistník a pojištěný.",2,289,false,0,0]
[8098303,64,false,"Pojistitel.",3,290,false,0,0]
[7541452,64,true,"Obmyšlený.",2,291,false,0,0]
[6916473,64,false,"Zájemce.",1,292,false,0,0]
[5053007,65,false,"Výše pojistného za pojistná nebezpečí.",3,293,false,{"$f":"IF(AND(C194,G194),1,0)","v":0},{"$f":"IF(G194,1,0)","v":0}]
[3733615,65,true,"Nejvyšší možná majetková újma, která může nastat v důsledku pojistné události.",2,294,false,0,0]
[2796162,65,false,"Limit pojistného plnění.",1,295,false,0,0]
[7170410,66,false,"Částka, kterou zaplatí pojištěný za pojistnou ochranu.",2,296,false,0,0]
[8736996,66,true,"Smluvně dohodnutá finanční částka v pojistné smlouvě, která určuje horní hranici pojistného plnění.",3,297,true,1,1]
[1844245,66,false,"Částka, která je dolní hranicí pojistného plnění.",1,298,false,0,0]
[3476477,67,false,"Pojistná cena.",3,299,false,0,0]
[2592842,67,true,"Pojistná hodnota.",2,300,false,0,0]
[2579562,67,false,"Aktuální škoda.",1,301,false,0,0]
[2486957,68,false,"Pojistná hranice.",1,302,false,0,0]
[7537110,68,true,"Pojistná částka.",3,303,true,1,1]
[4944634,68,false,"Pojistné plnění.",2,304,false,0,0]
[4423112,69,false,"Je to částka sjednaná v pojistné smlouvě, kterou pojistitel vyplatí v případě pojistné události.",3,305,false,0,0]
[2759529,69,true,"Je to úplata za soukromé pojištění.",2,306,true,1,1]
[1809726,69,false,"Je to částka, kterou pojistitel vyplatí pojistníkovi v případě zrušení smlouvy.",1,307,false,0,0]
[9355791,70,false,"Netto pojistné.",3,308,false,0,0]
[2002632,70,true,"Běžné pojistné.",2,309,false,0,0]
[82005,70,false,"Časové pojistné.",1,310,false,0,0]
[2159193,71,false,"Jednorázově vyplacená penze.",1,311,false,0,0]
[3856707,71,true,"Jednorázové pojistné.",2,312,false,0,0]
[4351935,71,false,"Odbytné.",3,313,false,0,0]
[7977945,72,false,"V den podpisu smlouvy.",3,314,false,0,0]
[6139832,72,true,"Prvního dne pojistného období, nebylo-li ujednáno jinak.",2,315,false,0,0]
[1409418,72,false,"Po přijetí pojištěného do pojištění.",1,316,false,0,0]
[5709912,73,false,"V den podpisu smlouvy.",2,317,false,0,0]
[4355673,73,true,"Dnem počátku pojištění, nebylo-li ujednáno jinak.",1,318,false,0,0]
[8151668,73,false,"Po přijetí pojištěného do pojištění.",3,319,false,0,0]
[4438853,74,false,"Zajistné.",3,320,false,0,0]
[1926784,74,true,"Pojistné.",1,321,false,0,0]
[2289530,74,false,"Cena.",2,322,false,0,0]
[7096677,75,false,"Je to jen skutečnost, při které byla poškozena oprávněná osoba.",2,323,false,0,0]
[1864078,75,true,"Je to skutečnost, ze které vznikla újma a která by mohla být důvodem vzniku práva na pojistné plnění.",1,324,false,0,0]
[9370348,75,false,"Je to jen událost, ke které došlo na území ČR.",3,325,false,0,0]
[3301123,76,false,"Je pojem, užívaný v životním pojištění při oceňování zdravotního stavu.",1,326,false,0,0]
[6535042,76,true,"Nahodilá událost krytá pojištěním.",2,327,false,0,0]
[8629551,76,false,"Placení pojistného.",3,328,false,0,0]
[6332230,77,false,"Nehodou.",2,329,false,0,0]
[3140575,77,true,"Škodná událost.",1,330,false,0,0]
[7341395,77,false,"Škodným důvodem.",3,331,false,0,0]
[7736370,78,false,"Pojistný záměr.",3,332,false,0,0]
[6934134,78,true,"Pojistná událost.",2,333,false,0,0]
[67772,78,false,"Pojistná skutečnost.",1,334,false,0,0]
[2861074,79,false,"Ne.",1,335,false,0,0]
[4773526,79,true,"Ano.",2,336,false,0,0]
[7534093,79,false,"Pouze v případě smrti pojištěného",3,337,false,0,0]
[5633618,80,false,"Do 30 dnů po skončení šetření policie.",2,338,false,0,0]
[6566368,80,true,"Do 15 dnů po skončení šetření pojistné události, není-li splatnost pojistného plnění ujednána jinak.",3,339,true,1,1]
[4949148,80,false,"Do 1 roku od skončení šetření policie.",1,340,false,0,0]
[5632717,81,false,"Do 1 měsíce od oznámení události.",2,341,false,0,0]
[7961281,81,true,"Do 3 měsíců od oznámení události.",3,342,true,1,1]
[2212770,81,false,"Do 6 měsíců od oznámení události.",1,343,false,0,0]
[2621756,82,false,"3 roky.",2,344,false,0,0]
[1279444,82,true,"10 let.",1,345,true,1,1]
[7527448,82,false,"Promlčecí lhůta u životního pojištění se neuplatňuje.",3,346,false,0,0]
[6495228,83,false,"5 let.",3,347,false,0,0]
[3331511,83,true,"3 roky.",2,348,false,0,0]
[978791,83,false,"1 rok.",1,349,false,0,0]
[5443567,84,false,"Ne.",2,350,false,0,0]
[4204391,84,true,"Ano, a to na žádost oprávněné osoby, pokud neexistuje rozumný důvod zálohu neposkytnout.",1,351,false,0,0]
[8331466,84,false,"Ano, pouze však u neživotního pojištění.",3,352,false,0,0]
[4096603,85,false,"Za 3 roky po vzniku pojistné události.",1,353,false,0,0]
[4237105,85,true,"Za 1 rok po vzniku pojistné události.",2,354,false,0,0]
[5882860,85,false,"Za 5 let po skončení šetření pojistné události.",3,355,false,0,0]
[1618812,86,false,"Za 3 roky po vzniku pojistné události.",2,356,false,0,0]
[1766302,86,true,"Za 1 rok po vzniku pojistné události.",3,357,false,{"$f":"IF(AND(C258,G258),1,0)","v":0},{"$f":"IF(G258,1,0)","v":0}]
[1132792,86,false,"Za 5 let po skončení šetření pojistné události.",1,358,false,0,0]
[7981442,87,false,"Ne.",1,359,false,0,0]
[9466133,87,true,"Ano, za podmínek stanovených zákonem.",3,360,false,0,0]
[8295140,87,false,"Pouze se souhlasem Ministerstva financí.",2,361,false,0,0]
[3833877,88,false,"Cena, za kterou byla věc nakoupena.",2,362,false,0,0]
[5515395,88,true,"Cena, kterou měla věc bezprostředně před pojistnou událostí.",3,363,false,0,0]
[2452652,88,false,"Pořizovací cena věci rozhodná pro stanovení pojistné částky.",1,364,false,0,0]
[5070445,89,false,"Stanoví se na základě vyhlášky Ministerstva financí.",1,365,false,0,0]
[8803371,89,true,"Stanoví se z nové ceny věci, přičemž se přihlíží ke stupni opotřebení nebo jiného znehodnocení či jejího zhodnocení.",3,366,false,0,0]
[7220681,89,false,"Stanoví na základě odhadu.",2,367,false,0,0]
[9995484,90,false,"Cena, kterou si stanoví klient.",3,368,false,0,0]
[6965875,90,true,"Cena, za kterou lze v daném místě a v daném čase pořídit věc stejnou nebo srovnatelnou, a to jako věc stejnou nebo novou stejného druhu a účelu.",2,369,false,0,0]
[2045303,90,false,"Cena, kterou stanoví Ministerstvo financí.",1,370,false,0,0]
[3210216,91,false,"Škodná cena.",2,371,false,0,0]
[7380884,91,true,"Časová cena.",3,372,false,0,0]
[1247665,91,false,"Odkupná cena.",1,373,false,0,0]
[2385968,92,false,"Odhadní cena.",1,374,false,0,0]
[5130117,92,true,"Nová cena.",2,375,false,0,0]
[5295496,92,false,"Nákupní cena.",3,376,false,0,0]
[8980879,93,false,"Finanční částka určená klientem.",3,377,false,0,0]
[7255174,93,true,"Výše technické rezervy vytvořené z nespotřebované části pojistného vypočtená pojistně matematickými metodami k datu zániku pojištění ponížená o poplatek za předčasný zánik pojištění.",1,378,false,0,0]
[8815957,93,false,"Celková částka k výplatě při pojistném plnění.",2,379,false,0,0]
[1857607,94,false,"V případě zvýšení inflace více než o 2 %.",2,380,false,0,0]
[8935658,94,true,"V případě, že běžné pojistné nebude zaplaceno ve stanovené lhůtě.",3,381,false,0,0]
[967497,94,false,"V žádném.",1,382,false,0,0]
[9449008,95,false,"Odškodné.",3,383,false,0,0]
[7148394,95,true,"Odkupné.",2,384,false,0,0]
[3993472,95,false,"Zádržné.",1,385,false,0,0]
[5503527,96,false,"Žádné.",2,386,false,0,0]
[9212499,96,true,"Jejich jméno nebo jména, adresa bydliště nebo sídla a identifikující údaj.",3,387,false,0,0]
[243175,96,false,"Pouze jméno a příjmení.",1,388,false,0,0]
[53369,97,false,"Smluvní ochrana pojistitele vůči pojistníkovi.",1,389,false,0,0]
[3791121,97,true,"Potvrzení o uzavření pojistné smlouvy vydané pojistitelem pojistníkovi.",2,390,false,0,0]
[7447861,97,false,"Příslib pojištěného k placení pojistného.",3,391,false,0,0]
[8742657,98,false,"Pojišťovací makléř.",3,392,false,0,0]
[7438225,98,true,"Pojistitel.",2,393,false,0,0]
[5486652,98,false,"Pojišťovací agent.",1,394,false,0,0]
[3310977,99,false,"Ano, ale pouze ze souhlasem Ministerstva financí.",2,395,false,0,0]
[804188,99,true,"Ano, ale pouze na žádost pojistníka.",1,396,false,0,0]
[4800994,99,false,"Ne, nikdy.",3,397,true,0,1]
[5256256,100,false,"Česká asociace pojišťoven.",2,398,false,0,0]
[928433,100,true,"Pojistitel.",1,399,false,0,0]
[9673009,100,false,"Ministerstvo financí.",3,400,false,0,0]
[5530957,101,false,"Ne.",2,401,false,0,0]
[3557087,101,true,"Ano.",1,402,true,1,1]
[7053772,101,false,"Ano, ale pouze u životního pojištění.",3,403,false,0,0]
[713498,102,false,"Po uzavření pojistné smlouvy.",1,404,false,0,0]
[6659977,102,true,"Před uzavřením pojistné smlouvy, to neplatí, uzavírá-li se smlouva formou obchodu na dálku - pojistitel je pro tento případ povinen splnit tuto povinnost okamžitě po uzavření smlouvy.",2,405,false,0,0]
[9918564,102,false,"Během trvání pojištění.",3,406,false,0,0]
[1223734,103,false,"Ne.",3,407,false,0,0]
[940428,103,true,"Ano.",2,408,false,0,0]
[268740,103,false,"Ano, pouze pokud se jedná o investiční životní pojištění.",1,409,false,0,0]
[8723622,104,false,"Ano, vždy.",3,410,false,0,0]
[8414517,104,true,"U pojistné smlouvy se vyžaduje písemná forma, s výjimkou případů, kdy je pojištění ujednáno na pojistnou dobu kratší než jeden rok.",2,411,true,1,1]
[1050208,104,false,"Ne, pouze na žádost klient.",1,412,false,0,0]
[7393014,105,false,"Ano.",2,413,true,0,1]
[7489961,105,true,"Ne, pokud je uzavřena včasným zaplacením pojistného.",3,414,false,0,0]
[4198020,105,false,"Pouze v případě, že pojistník není totožný s pojištěným.",1,415,false,0,0]
[9952140,106,false,"Vyjádřením zájmu ze strany klienta.",3,416,false,0,0]
[4429893,106,true,"Prvním dnem následujícím po uzavření pojistné smlouvy.",1,417,false,0,0]
[7651297,106,false,"Jen k prvnímu dni kalendářního čtvrtletí.",2,418,false,0,0]
[2398096,107,false,"Ne.",3,419,false,0,0]
[1799667,107,true,"Ano, nebyla-li ujednána jiná doba vzniku pojištění.",1,420,false,0,0]
[2044050,107,false,"Ano, vždy.",2,421,false,{"$f":"IF(AND(C322,G322),1,0)","v":0},{"$f":"IF(G322,1,0)","v":0}]
[7838610,108,false,"Ne.",3,422,false,0,0]
[5246799,108,true,"Ano.",1,423,false,0,0]
[5521622,108,false,"Ano, pokud je pojistník v pracovní neschopnosti.",2,424,false,0,0]
[6573986,109,false,"Ne.",2,425,false,0,0]
[9661399,109,true,"Ano.",3,426,false,0,0]
[6040640,109,false,"Ano, protože každé pojištění vzniká dnem uzavření pojistné smlouvy.",1,427,false,0,0]
[6853478,110,false,"Kdykoliv i bez souhlasu obou smluvních stran.",3,428,false,0,0]
[3938281,110,true,"Dohodou smluvních stran, která musí být učiněna písemnou formou, není-li ujednáno nebo stanoveno jinak.",1,429,false,0,0]
[5988926,110,false,"Dohodou smluvních stran, a to ve lhůtě 3 měsíců.",2,430,false,0,0]
[4296830,111,false,"Ano se souhlasem Ministerstva financí.",2,431,false,0,0]
[2868600,111,true,"Ne, ledaže tak stanoví zákon.",1,432,false,0,0]
[6041841,111,false,"Kdykoliv i se zpětnou platností.",3,433,false,0,0]
[1731468,112,false,"Pokud je to nevýhodné pro pojistitele.",1,434,false,0,0]
[3409534,112,true,"Nebylo-li pojistné zaplaceno, přičemž doba přerušení počne uplynutím dvou měsíců ode dne jeho splatnosti až do jeho zaplacení.",2,435,false,0,0]
[9009492,112,false,"Pokud je to nevýhodné pro klienta.",3,436,false,0,0]
[9682152,113,false,"Ne, doba přerušení se započítává do pojistné doby.",3,437,false,0,0]
[7121571,113,true,"Doba přerušení se započítává do pojistné doby, jen je-li to výslovně ujednáno.",2,438,false,0,0]
[806120,113,false,"Ano, doba přerušení prodlužuje délku pojistné doby.",1,439,false,0,0]
[8619051,114,false,"Žádná.",3,440,false,0,0]
[7955527,114,true,"Povinná, pokud existují zákonem stanovené důvody jeho trvání, a životní, nebylo-li tak ujednánno v pojistné smlouvě.",2,441,true,1,1]
[3495294,114,false,"Všechna.",1,442,false,0,0]
[603409,115,false,"Ano, vždy na žádost pojistníka.",1,443,false,0,0]
[4971812,115,true,"Ne, pokud existují zákonem stanovené důvody jeho trvání.",3,444,true,1,1]
[4163358,115,false,"Ano, se souhlasem Ministerstva financí.",2,445,false,0,0]
[1573461,116,false,"Ano, kdykoliv na konci pojistného období.",1,446,false,0,0]
[8763927,116,true,"Ne, pokud nebyla možnost přerušení pojištění ujednána v pojistné smlouvě.",3,447,false,0,0]
[5805201,116,false,"Pouze pokud vznikl přeplatek na pojistném",2,448,false,0,0]
[8218364,117,false,"Ne.",3,449,false,0,0]
[2242914,117,true,"Ano.",2,450,false,0,0]
[752149,117,false,"Ano, ale jen se souhlasem Ministerstva financí.",1,451,false,0,0]
[350788,118,false,"Ne.",1,452,false,0,0]
[5550844,118,true,"Ano, např. výpovědí do 3 měsíců ode dne doručení oznámení vzniku pojistné události.",2,453,false,0,0]
[9837760,118,false,"Ano, pouze se souhlasem České kanceláře pojistitelů.",3,454,false,0,0]
[1690758,119,false,"Ano.",1,455,false,0,0]
[8865528,119,true,"Ne - např. omezení v povinném pojištění.",3,456,false,0,0]
[8514923,119,false,"Pouze v případě úmrtí pojistníka.",2,457,false,0,0]
[7920619,120,false,"Ne.",2,458,false,0,0]
[9016886,120,true,"Ano.",3,459,false,0,0]
[4663021,120,false,"Pouze na základě rozhodnutí finančního úřadu.",1,460,false,0,0]
[294806,121,false,"Ne.",1,461,false,0,0]
[7563881,121,true,"Ano.",2,462,false,0,0]
[7638371,121,false,"Pouze pokud je tato možnost sjednána v pojistné smlouvě.",3,463,false,0,0]
[8644757,122,false,"Smrtí oprávněné osoby.",3,464,false,0,0]
[1311025,122,true,"Smrtí pojištěné osoby.",1,465,false,0,0]
[8130947,122,false,"Smrtí obmyšlené osoby.",2,466,false,0,0]
[7590004,123,false,"Škodové pojištění je pojištění, jehož účelem je získat dohodnutou finanční částku v důsledku pojistné události.",2,467,false,0,0]
[6331365,123,true,"Škodové pojištění je pojištění, jehož účelem je náhrada újmy vzniklé v důsledku pojistné události.",1,468,false,0,0]
[8126690,123,false,"Škodové pojištění je pojištění, jehož účelem je získání obnosu.",3,469,false,0,0]
[557488,124,false,"Obnosové.",1,470,false,0,0]
[4189775,124,true,"Škodové.",2,471,false,0,0]
[7393865,124,false,"Životní.",3,472,false,0,0]
[4853739,125,false,"Ne.",3,473,false,0,0]
[3132688,125,true,"Ano.",2,474,false,0,0]
[695134,125,false,"Pouze v některých případech.",1,475,false,0,0]
[7684920,126,false,"Jen jako obnosové.",2,476,false,0,0]
[7059190,126,true,"Jako škodové i obnosové.",1,477,false,0,0]
[9780496,126,false,"Jen jako škodové.",3,478,false,0,0]
[3459228,127,false,"Horní hranice pojistného plnění není nikdy určena.",1,479,false,0,0]
[3770080,127,true,"Horní hranice pojistného plnění je určena pojistnou částkou nebo limitem pojistného plnění.",2,480,false,0,0]
[8171386,127,false,"Horní hranice pojistného plnění je určena výší pojistného.",3,481,false,0,0]
[840880,128,false,"Je-li pojistná částka v době pojistné události vyšší, než pojistná hodnota pojištěného majetku.",1,482,false,0,0]
[9587160,128,true,"Je-li pojistná částka v době pojistné události nižší, než pojistná hodnota pojištěného majetku.",2,483,false,0,0]
[9959037,128,false,"Je-li pojistná částka v době pojistné události stejná jako pojistná hodnota pojištěného majetku.",3,484,false,0,0]
[8386251,129,false,"Ne.",3,485,false,{"$f":"IF(AND(C386,G386),1,0)","v":0},{"$f":"IF(G386,1,0)","v":0}]
[6351069,129,true,"Ano, pojistitel sníží pojistné plnění v poměru, v jakém je výše pojistné částky ke skutečné výši pojistné hodnoty pojištěného majetku, nebylo-li dohodnuto jinak.",1,486,false,0,0]
[7092236,129,false,"Pouze na základě písemné žádosti pojištěného, na kterou musí reagovat do 1 měsíce od obdržení.",2,487,false,0,0]
[7836876,130,false,"Je-li pojistná částka stejná jako pojistná hodnota pojištěného majetku.",3,488,false,0,0]
[6073536,130,true,"Převyšuje-li pojistná částka pojistnou hodnotu pojištěného majetku.",2,489,false,0,0]
[1826812,130,false,"Je-li majetek pojištěn u více pojišťoven.",1,490,false,0,0]
[7552214,131,false,"Ne.",2,491,false,0,0]
[8295319,131,true,"Ano.",3,492,false,0,0]
[1683070,131,false,"Jen tehdy, vynaloží-li je někdo jiný než účastník pojištění.",1,493,false,0,0]
[6543621,132,false,"Pouze pojistníkovi.",3,494,false,0,0]
[1265557,132,true,"Pojistníkovi či jiné osobě, která tyto náklady vynaložila nad rámec povinností stanovených zvláštním předpisem.",1,495,false,0,0]
[6063981,132,false,"Pouze pojištěnému.",2,496,false,0,0]
[4151010,133,false,"Ne, nikdy nezaniká.",1,497,false,0,0]
[4318024,133,true,"Ano, pokud není v pojistné smlouvě dohodnuto jinak.",2,498,true,1,1]
[4907680,133,false,"Ano, vždy zaniká.",3,499,false,0,0]
[6741617,134,false,"Nikdy.",1,500,false,0,0]
[9806091,134,true,"Množné pojištění vznikne, je-li týž pojistný zájem pojištěn proti témuž pojistnému nebezpečí a pro tutéž dobu u několika pojistitelů.",3,501,false,0,0]
[6788815,134,false,"V případě určení více obmyšlených osob.",2,502,false,0,0]
[1687201,135,false,"Jen soupojištění.",1,503,false,0,0]
[6327372,135,true,"Souběžné pojištění, vícenásobné pojištění nebo soupojištění.",3,504,true,1,1]
[3775877,135,false,"Jen zajištění.",2,505,false,0,0]
[9198304,136,false,"Je to skupinové pojištění.",3,506,false,0,0]
[4002190,136,true,"Je to pojištění, jehož účelem je získání pojistného plnění v rozsahu stanoveném pojistnou smlouvou.",2,507,false,0,0]
[3252032,136,false,"Je to pojištění, jehož účelem je náhrada škody vzniklé v důsledku pojistné události.",1,508,false,0,0]
[3893010,137,false,"Jen jako škodové.",1,509,false,0,0]
[8673566,137,true,"Jen jako obnosové.",3,510,true,1,1]
[8596423,137,false,"Jako škodové i obnosové.",2,511,false,0,0]
[2909274,138,false,"Škodové.",1,512,false,0,0]
[7101459,138,true,"Obnosové.",3,513,false,0,0]
[5007692,138,false,"Odpovědnostní.",2,514,false,0,0]
[4215627,139,false,"Pouze na plnění ze svého úrazového pojištění.",1,515,false,0,0]
[4686916,139,true,"Na pojistné plnění ze svého úrazového pojištění a nezávisle na tom může žádat náhradu újmy po škůdci.",2,516,true,1,1]
[8362772,139,false,"Pouze na náhradu újmy od škůdce.",3,517,false,0,0]
[3941039,140,false,"Ano, pouze v případě smrti pojištěného.",3,518,false,0,0]
[1763733,140,true,"Ano, jsou-li pro to důvody související s určením výše pojistného rizika, výše pojistného  nebo se šetřením pojistné události, pokud k tomu byl pojistiteli dán souhlas pojištěného.",2,519,true,1,1]
[1498165,140,false,"Ne, jedná se o osobní údaje a citlivá data.",1,520,false,0,0]
[2062325,141,false,"Čestného prohlášení klienta.",1,521,false,0,0]
[2942477,141,true,"Zpráv a zdravotnické dokumentace vyžádaných pojistitelem pověřenou osobou provozující zdravotnické zařízení od ošetřujících lékařů, a v případě potřeby i prohlídkou nebo vyšetřením provedeným zdravotnickým zařízením.",2,522,true,1,1]
[6959124,141,false,"Čestného prohlášení rodinného příslušníka.",3,523,false,0,0]
[1812870,142,false,"Ne.",1,524,false,0,0]
[5915572,142,true,"Ano.",2,525,true,1,1]
[9490646,142,false,"Jen uzná-li to pojistitel za nutné.",3,526,false,0,0]
[5490888,143,false,"Ne.",2,527,false,0,0]
[4188771,143,true,"Ano.",1,528,true,1,1]
[7374295,143,false,"Jen uzná-li to pojistitel za nutné.",3,529,false,0,0]
[1855198,144,false,"Pouze před uzavřením smlouvy kapitálového životního pojištění.",2,530,false,0,0]
[675064,144,true,"Před uzavřením každé pojistné smlouvy.",1,531,false,0,0]
[4302747,144,false,"Nejpozději do 6 týdnů po uzavření každé pojistné smlouvy.",3,532,false,0,0]
[2532856,145,false,"Ne.",2,533,false,0,0]
[2378052,145,true,"Ano.",1,534,false,0,0]
[3610895,145,false,"Pouze na vyžádání.",3,535,false,0,0]
[4482069,146,false,"Nemusí o této změně pojistníka informovat.",2,536,false,0,0]
[7534441,146,true,"Musí o této změně pojistníka informovat.",3,537,false,0,0]
[3254644,146,false,"Musí o této změně pojistníka informovat jen tehdy, je-li jeho nové sídlo mimo území ČR.",1,538,false,0,0]
[5837079,147,false,"Ne.",3,539,false,0,0]
[5735648,147,true,"Ano.",2,540,false,0,0]
[2477319,147,false,"Pouze pro podnikatele.",1,541,false,0,0]
[4815172,148,false,"Jako pojištění škodová nebo jako pojištění obnosová.",3,542,false,0,0]
[4488013,148,true,"Pouze jako pojištění škodová.",2,543,false,0,0]
[2285285,148,false,"Pouze jako pojištění obnosová.",1,544,false,0,0]
[7821082,149,false,"Pro všechny profese.",2,545,false,0,0]
[6305853,149,true,"Pro určité profese, u kterých zákon vyžaduje toto pojištění.",1,546,false,0,0]
[9950052,149,false,"Pouze pro manuální pracovníky.",3,547,false,0,0]
[8596923,150,false,"Kuchaři, cukráři, číšníci, servírky, výčepní.",2,548,false,0,0]
[3292906,150,true,"Advokáti, notáři, auditoři, autorizovaní architekti, samostatní likvidátoři pojistných událostí.",1,549,false,{"$f":"IF(AND(C450,G450),1,0)","v":0},{"$f":"IF(G450,1,0)","v":0}]
[9170169,150,false,"Sociální pracovníci, kopáči, betonáři, zedníci, tesaři.",3,550,false,0,0]
[6017750,151,false,"Všechna silniční a drážní vozidla.",1,551,false,0,0]
[8911896,151,true,"Silniční vozidlo, zvláštní vozidlo a trolejbus.",2,552,false,0,0]
[9293789,151,false,"Jen silniční vozidla.",3,553,false,0,0]
[2830115,152,false,"Kdokoliv.",2,554,false,0,0]
[2550116,152,true,"Ten, komu byla provozem vozidla způsobena újma a má nárok na náhradu újmy.",1,555,false,0,0]
[9278176,152,false,"Jenom ten, komu byla provozem vozidla způsobena škoda na majetku.",3,556,false,0,0]
[804812,153,false,"Ten, kdo uzavřel s pojistitelem smlouvu o pojištění odpovědnosti.",2,557,false,0,0]
[2967456,153,true,"Ten, na jehož odpovědnost za újmu se pojištění odpovědnosti vztahuje.",3,558,false,0,0]
[626863,153,false,"Osoba, kterou určí pojistník.",1,559,false,0,0]
[2081628,154,false,"Je povinen vydat pojistníkovi doklad o pojištění odpovědnosti a na žádost pojistníka zelenou kartu.",1,560,false,0,0]
[3793382,154,true,"Je povinen vydat pojistníkovi zelenou kartu.",3,561,false,0,0]
[2304970,154,false,"Nevydává pojistníkovi žádný doklad.",2,562,false,0,0]
[204654,155,false,"Pouze na základě rozhodnutí Ministerstva financí.",1,563,false,0,0]
[3077257,155,true,"Ano, nejméně 3% z vybraného pojistného POV.",2,564,false,0,0]
[4119484,155,false,"Ne.",3,565,false,0,0]
[3887700,156,false,"Jen delší dobu řidičské praxe pojistníka a to slevou.",3,566,false,0,0]
[273359,156,true,"Předcházející škodný průběh pojištění odpovědnosti.",1,567,false,0,0]
[920458,156,false,"Jen vyšší věk pojistníka, a to přirážkou k pojistnému.",2,568,false,0,0]
[8941931,157,false,"Újmu způsobenou provozem vozidla na nemovitosti mimo pozemní komunikaci.",3,569,false,0,0]
[6864206,157,true,"Újmu, kterou utrpěl řidič vozidla, jehož provozem byla újma způsobena.",2,570,false,0,0]
[1512299,157,false,"Újmu nepřesahující částku 1 000 Kč.",1,571,false,0,0]
[9198267,158,false,"Dnem uzavření pojistné smlouvy s jiným pojistitelem.",3,572,false,0,0]
[624615,158,true,"Dnem vyřazení tuzemského vozidla z evidence vozidel.",1,573,false,0,0]
[4767812,158,false,"Dnem oznámení pojistné události.",2,574,false,0,0]
[1446498,159,false,"Doklad o vlastnictví vozidla.",2,575,false,0,0]
[960612,159,true,"Platnou zelenou kartu, kterou prokáže platnost svého pojištění odpovědnosti z provozu vozidla.",1,576,false,0,0]
[3142757,159,false,"Doklad o zaplacení pojistného.",3,577,false,0,0]
[6297861,160,false,"Ano, může ji provádět jen fyzická osoba.",3,578,false,0,0]
[2102933,160,true,"Ano, může ji provádět fyzická i právnická osoba.",1,579,false,0,0]
[5751560,160,false,"Ano, může ji provádět jen právnická osoba.",2,580,false,0,0]
[989153,161,false,"Ne.",2,581,false,0,0]
[8600958,161,true,"Ano, bez ohledu na to, o jaký druh pojištění se jedná.",3,582,true,1,1]
[166786,161,false,"Ano, ale jen jde-li o návrhy na uzavření pojistných smluv v pojištění osob.",1,583,false,0,0]
[9140568,162,false,"Finanční poradenství.",3,584,false,0,0]
[580429,162,true,"Zprostředkovatelská činnost v pojišťovnictví.",1,585,true,1,1]
[3052226,162,false,"Pojistné poradenství.",2,586,false,0,0]
[9637690,163,false,"Zaměstnanec pojišťovny zabývající se uzavíráním pojistných smluv.",3,587,false,0,0]
[4753735,163,true,"Právnická nebo fyzická osoba, která za úplatu provozuje zprostředkovatelskou činnost v pojišťovnictví.",2,588,false,0,0]
[4163291,163,false,"Pouze fyzická osoba, která bezúplatně provozuje zprostředkovatelskou činnost v pojišťovnictví.",1,589,false,0,0]
[3536552,164,false,"Vázaný pojišťovací zprostředkovatel.",1,590,false,0,0]
[6985982,164,true,"Pojišťovací makléř.",2,591,false,0,0]
[8805051,164,false,"Pojišťovací agent.",3,592,false,0,0]
[6220769,165,false,"Ano a smí nabízet i vzájemně konkurenční produkty těchto pojišťoven.",1,593,false,0,0]
[7229839,165,true,"Ano, ale nesmí nabízet vzájemně konkurenční pojistné produkty od svých smluvních pojišťoven.",2,594,false,0,0]
[8808952,165,false,"Ne.",3,595,false,0,0]
[7127645,166,false,"Ne.",2,596,false,0,0]
[2378475,166,true,"Ano.",1,597,false,0,0]
[7880257,166,false,"Ano, ale tuto zprostředkovatelskou činnost smí vykonávat nejvýše pro tři pojišťovny zároveň.",3,598,false,0,0]
[1987093,167,false,"Ne.",2,599,false,0,0]
[4705038,167,true,"Ano.",3,600,false,0,0]
[810847,167,false,"Ano, ale jen má-li k tomu povolení finančního úřadu.",1,601,false,0,0]
[1589490,168,false,"Ano.",1,602,false,0,0]
[6340352,168,true,"Ne.",2,603,false,0,0]
[7702391,168,false,"Ano, ale pouze pokud nespolupracuje s více pojišťovnami.",3,604,false,0,0]
[6147401,169,false,"Ano, ale pouze pokud nespolupracuje s více pojišťovacími agenty, resp. pojišťovacími makléři.",2,605,false,0,0]
[5093988,169,true,"Ne.",1,606,false,0,0]
[9784377,169,false,"Ano.",3,607,false,0,0]
[7997756,170,false,"Vázaní pojišťovací zprostředkovatelé.",3,608,false,0,0]
[5878982,170,true,"Pojišťovací makléř a pojišťovací agent (s výjimkou pojišťovacího agenta, za kterého se  pojišťovna, pro kterou je činný, písemně zavázala převzít odpovědnost za škody způsobené jeho činností).",1,609,true,1,1]
[6546217,170,false,"Všechny kategorie pojišťovacích zprostředkovatelů.",2,610,false,0,0]
[5986772,171,false,"Ne.",2,611,false,0,0]
[213325,171,true,"Pojišťovací agent ano, ovšem vyjma toho, za kterého se pojišťovna, pro kterou je činný, písemně zavázala převzít odpovědnost za škody způsobené jeho činností. Výhradní pojišťovací agent ne.",1,612,false,0,0]
[9264013,171,false,"Ano, sjednávají-li pojistné smlouvy na škodové pojištění.",3,613,false,{"$f":"IF(AND(C514,G514),1,0)","v":0},{"$f":"IF(G514,1,0)","v":0}]
[8795909,172,false,"Ne.",3,614,false,0,0]
[4523342,172,true,"Ano.",2,615,false,0,0]
[1246681,172,false,"Ne, pokud se některá pojišťovna zavázala převzít odpovědnost za škody způsobené jeho činností.",1,616,false,0,0]
[8734745,173,false,"Ano.",3,617,false,0,0]
[5171310,173,true,"Ne, neboť za škodu jím způsobenou odpovídá pojišťovna, jejíž pojistný produkt nabízí.",2,618,false,0,0]
[3534346,173,false,"Ano, sjednává-li pojistné smlouvy na škodové pojištění.",1,619,false,0,0]
[2302048,174,false,"Vázaným pojišťovacím zprostředkovatelům a podřízeným pojišťovacím zprostředkovatelům.",1,620,false,0,0]
[3803508,174,true,"Pojišťovacím agentům, výhradním pojišťovacím agentům a pojišťovacím makléřům.",2,621,false,0,0]
[7760433,174,false,"Každému pojišťovacímu zprostředkovateli, který projeví zájem.",3,622,false,0,0]
[4880746,175,false,"Ne.",2,623,false,0,0]
[3421540,175,true,"Ano, pokud k tomu byl zmocněn pojišťovnou, jejímž jménem a na jejíž účet jedná.",1,624,false,0,0]
[7468957,175,false,"Ano, ale jen do  limitu 100 eur na jednu pojistnou smlouvu.",3,625,false,0,0]
[8192307,176,false,"Ne.",3,626,false,0,0]
[1800457,176,true,"Ano, pokud k tomu byl zmocněn pojišťovnou.",2,627,false,0,0]
[516412,176,false,"Ano, ale jen do  limitu  300 eur na jednu pojistnou smlouvu.",1,628,false,0,0]
[5122329,177,false,"Ano, ale pouze do limitu 50 eur na jednu pojistnou smlouvu.",2,629,false,0,0]
[918225,177,true,"Ne.",1,630,false,0,0]
[9064596,177,false,"Ano, ale jen když se tak dohodne s pojišťovnou.",3,631,true,0,1]
[4898310,178,false,"Ano, ale pouze do limitu 50 eur na jednu pojistnou smlouvu.",1,632,false,0,0]
[5953688,178,true,"Ne.",2,633,false,0,0]
[8992997,178,false,"Ano, ale jen když se tak dohodne s pojišťovacím zprostředkovatelem, jehož jménem a na jehož účet jedná.",3,634,false,0,0]
[5633736,179,false,"Evropský statistický úřad.",2,635,false,0,0]
[5310519,179,true,"Česká národní banka.",1,636,false,0,0]
[6858174,179,false,"Nikdo",3,637,false,0,0]
[2356199,180,false,"Ne.",1,638,false,0,0]
[9814151,180,true,"Ano.",3,639,false,0,0]
[2459216,180,false,"Ano, a to společně s Policií ČR.",2,640,false,0,0]
[8842258,181,false,"V  registru, který společně vede Ministerstvo financí a Policie ČR.",3,641,false,0,0]
[8613421,181,true,"V  registru, který vede Česká národní banka.",2,642,false,0,0]
[6914068,181,false,"V registru, který vede Ministerstvo vnitra.",1,643,false,0,0]
[6044719,182,false,"Ano.",2,644,false,0,0]
[5929987,182,true,"Ne, zápis do registru je podmínkou výkonu zprostředkovatelské činnosti.",1,645,false,0,0]
[6317519,182,false,"Ano, ale za podmínky, že bude vykonávat zprostředkovatelskou činnost jako podřízený pojišťovací zprostředkovatel.",3,646,false,0,0]
[9399918,183,false,"Ministerstvo financí ve spolupráci s Ministerstvem vnitra.",3,647,false,0,0]
[4292736,183,true,"Česká národní banka.",1,648,false,0,0]
[6569237,183,false,"Česká národní banka v součinnosti s profesními svazy pojišťovacích zprostředkovatelů a samostatných likvidátorů pojistných událostí.",2,649,false,0,0]
[749866,184,false,"Jen orgány státní správy.",1,650,false,0,0]
[9552584,184,true,"Každý, neboť tento registr je veřejně přístupný.",3,651,false,0,0]
[5985615,184,false,"Jen pojišťovny.",2,652,false,0,0]
[7537963,185,false,"Ano, ale pouze pokud klient prokáže vztah k pojišťovacímu zprostředkovateli.",3,653,false,0,0]
[2201599,185,true,"Ano, neboť registr, ve kterém jsou vedeni pojišťovací zprostředkovatelé, je veřejně přístupný.",1,654,false,0,0]
[4623654,185,false,"Ne.",2,655,false,0,0]
[4993596,186,false,"Základní a vyšší.",2,656,false,0,0]
[350446,186,true,"Základní, střední a vyšší.",1,657,false,0,0]
[6754872,186,false,"Základní, střední, vyšší a nejvyšší.",3,658,false,0,0]
[4491668,187,false,"Ano, ale jen na vysoké škole.",2,659,false,0,0]
[7306058,187,true,"Ano, a to absolvováním doškolovacích kursů každých 5 let.",3,660,false,0,0]
[163547,187,false,"Ne.",1,661,false,0,0]
[9564103,188,false,"U všech.",3,662,false,0,0]
[1818369,188,true,"U pojišťovacích agentů a u pojišťovacích makléřů.",2,663,true,1,1]
[562773,188,false,"U žádného.",1,664,false,0,0]
[7182955,189,false,"Ano, a to nejméně 1 týden.",3,665,false,0,0]
[637227,189,true,"Ne.",1,666,false,0,0]
[4704953,189,false,"Ano, a to nejméně 10 let.",2,667,false,0,0]
[6085150,190,false,"Středního.",3,668,false,0,0]
[569436,190,true,"Základního.",1,669,false,0,0]
[3116945,190,false,"Vyššího.",2,670,false,0,0]
[1848319,191,false,"Středního.",1,671,false,0,0]
[3407493,191,true,"Základního.",2,672,false,0,0]
[4845084,191,false,"Vyššího.",3,673,false,0,0]
[4061972,192,false,"Středního.",2,674,false,0,0]
[197320,192,true,"Základního.",1,675,false,0,0]
[7308242,192,false,"Vyššího.",3,676,false,0,0]
[8799574,193,false,"Základního.",3,677,false,{"$f":"IF(AND(C578,G578),1,0)","v":0},{"$f":"IF(G578,1,0)","v":0}]
[7728289,193,true,"Vyššího.",2,678,false,0,0]
[5109013,193,false,"Středního.",1,679,false,0,0]
[7341232,194,false,"Základního.",3,680,false,0,0]
[6896405,194,true,"Středního.",2,681,false,0,0]
[1350394,194,false,"Vyššího",1,682,false,0,0]
[3004904,195,false,"Ne, neboť tuto povinnost mají orgány činné v trestním řízení.",1,683,false,0,0]
[9866936,195,true,"Ano, a to bez zbytečného odkladu.",3,684,false,0,0]
[3179156,195,false,"Ne, oznamuje ji jen Policii ČR.",2,685,false,0,0]
[3422550,196,false,"Čestným prohlášením.",2,686,false,0,0]
[6527207,196,true,"Výpisem z evidence Rejstříku trestů.",3,687,false,0,0]
[2583718,196,false,"Výpisem z Rejstříku trestů z jakéhokoli období.",1,688,false,0,0]
[7677736,197,false,"Nic.",3,689,false,0,0]
[4480034,197,true,"Ohlásit to České národní bance a ukončit výkon zprostředkovatelské činnosti v pojišťovnictví.",2,690,false,0,0]
[2195087,197,false,"Oznámit to Policii ČR.",1,691,false,0,0]
[1559083,198,false,"Ne, neboť tuto povinnost má správce konkursní podstaty právnické osoby.",2,692,false,0,0]
[5314628,198,true,"Ano, a to bez zbytečného odkladu.",3,693,false,0,0]
[380391,198,false,"Ano, a to do 1 měsíce od okamžiku, kdy ke ztrátě důvěryhodnosti došlo.",1,694,false,0,0]
[560911,199,false,"Nic.",1,695,true,0,1]
[760927,199,true,"Ohlásit to České národní bance a ukončit výkon zprostředkovatelské činnosti v pojišťovnictví.",2,696,false,0,0]
[7311148,199,false,"Oznámit to Policii ČR.",3,697,false,0,0]
[8084680,200,false,"Ano, jsou uvedeny v obchodním zákoníku.",2,698,false,0,0]
[8866501,200,true,"Ano, jsou uvedeny v zákoně o pojišťovacích zprostředkovatelích a likvidátorech pojistných událostí.",3,699,false,0,0]
[4088786,200,false,"Ne, žádný zákon to nestanoví.",1,700,false,0,0]
[5093686,201,false,"Ne.",2,701,false,0,0]
[3938726,201,true,"Ano.",1,702,false,0,0]
[6199382,201,false,"Ano, ale pouze pojišťovací makléř.",3,703,false,0,0]
[9905085,202,false,"Ne.",3,704,false,0,0]
[6699962,202,true,"Ano, a to bez zbytečného odkladu.",2,705,false,0,0]
[4454371,202,false,"Ano, a je jedno, kdy to udělá.",1,706,false,0,0]
[1149030,203,false,"Ne.",1,707,true,0,1]
[8066394,203,true,"Ano, ale pouze právnická osoba.",3,708,false,0,0]
[5685274,203,false,"Ano, ale pouze pokud k tomu bude písemně vyzván Českou národní bankou.",2,709,false,0,0]
[9590720,204,false,"Ano.",3,710,false,0,0]
[1963127,204,true,"Ne.",1,711,false,0,0]
[9454670,204,false,"Ano, ale jen pokud spolupracuje s více pojišťovnami.",2,712,false,0,0]
[2528748,205,false,"Ne.",1,713,false,0,0]
[8535396,205,true,"Ano.",2,714,false,0,0]
[9203806,205,false,"Ano, pokud  zaměstnává více než 50 zaměstnanců.",3,715,false,0,0]
[8008511,206,false,"Ne.",2,716,false,0,0]
[8539588,206,true,"Ano.",3,717,false,0,0]
[7985786,206,false,"Ano, pokud zaměstnává více než 50 zaměstnanců.",1,718,false,0,0]
[903905,207,false,"Ano.",1,719,false,0,0]
[5254407,207,true,"Ne.",3,720,false,0,0]
[2263326,207,false,"Ano, ale jen pokud spolupracuje s více pojišťovacími zprostředkovateli.",2,721,false,0,0]
[2930294,208,false,"Pojišťovací agent, výhradní pojišťovací agent a pojišťovací makléř.",2,722,false,0,0]
[223213,208,true,"Vázaný pojišťovací zprostředkovatel, výhradní pojišťovací agent a pojišťovací agent.",1,723,false,0,0]
[7337987,208,false,"Pojišťovací makléř a vázaný pojišťovací zprostředkovatel.",3,724,false,0,0]
[8388073,209,false,"Ne.",2,725,false,0,0]
[9929589,209,true,"Ano.",3,726,false,0,0]
[5604723,209,false,"Ano, ale jen má-li písemnou smlouvu i s klientem.",1,727,false,0,0]
[4555273,210,false,"Ano.",2,728,false,0,0]
[9150767,210,true,"Ne.",3,729,false,0,0]
[2897855,210,false,"Ano, ale jen nemá-li písemnou smlouvu s klientem.",1,730,false,0,0]
[3430882,211,false,"Ne, pokud spolupracuje pouze s jednou pojišťovnou.",2,731,false,0,0]
[3383925,211,true,"Ano.",1,732,false,0,0]
[8243424,211,false,"Ano, ale jen má-li písemnou smlouvu i s klientem.",3,733,false,0,0]
[1384042,212,false,"Klient (pojistník), se kterým jménem pojišťovny uzavřel pojistnou smlouvu.",2,734,false,0,0]
[3179839,212,true,"Pojišťovna, jejímž jménem a na jejíž účet uzavřel příslušnou pojistnou smlouvu.",3,735,false,0,0]
[1014495,212,false,"Zprostředkovatelská činnost v pojišťovnictví se provozuje bezplatně, a proto za ni nenáleží provize.",1,736,false,0,0]
[7219390,213,false,"Klient (pojistník), se kterým jménem pojišťovny uzavřel pojistnou smlouvu.",3,737,false,0,0]
[1353117,213,true,"Pojišťovna, jejímž jménem a na jejíž účet uzavřel příslušnou pojistnou smlouvu.",1,738,false,0,0]
[5081697,213,false,"Zprostředkovatelská činnost v pojišťovnictví se provozuje bezplatně, a proto za ni nenáleží provize.",2,739,false,0,0]
[2381675,214,false,"Klient (pojistník), se kterým jménem pojišťovny uzavřel pojistnou smlouvu.",1,740,false,0,0]
[4399587,214,true,"Pojišťovací agent, výhradní pojišťovací agent nebo pojišťovací makléř, se kterým spolupracuje.",2,741,false,{"$f":"IF(AND(C642,G642),1,0)","v":0},{"$f":"IF(G642,1,0)","v":0}]
[8467311,214,false,"Pojišťovna, jejímž jménem a na jejíž účet uzavřel příslušnou pojistnou smlouvu.",3,742,false,0,0]
[274761,215,false,"Vždy jen klient (pojistník), pro kterého vyhledal příslušnou pojišťovnu a pojištění.",1,743,false,0,0]
[9695549,215,true,"Příslušná pojišťovna, pokud se pojišťovací makléř s klientem (pojistníkem) a s touto pojišťovnou nedohodl jinak.",3,744,false,0,0]
[6278767,215,false,"Zprostředkovatelská činnost v pojišťovnictví se provozuje bezplatně, a proto za ni nenáleží provize.",2,745,false,0,0]
[3867370,216,false,"Ano, a to bez ohledu na sjednávaný druh pojištění.",2,746,false,0,0]
[3461791,216,true,"Ne.",1,747,false,0,0]
[4472840,216,false,"Pojišťovny žádné provize neposkytují.",3,748,false,0,0]
[1431758,217,false,"Ano.",1,749,false,0,0]
[2453807,217,true,"Ne.",2,750,false,0,0]
[8066247,217,false,"Ano, ale jen jedná-li se o úplatu za zprostředkování neživotního pojištění.",3,751,false,0,0]
[2068162,218,false,"Ano.",1,752,false,0,0]
[6919717,218,true,"Ne.",3,753,false,0,0]
[3668152,218,false,"Ano, ale pouze úplatu za zprostředkování životního pojištění.",2,754,false,0,0]
[3888546,219,false,"Ano.",1,755,false,0,0]
[8705270,219,true,"Ne.",3,756,false,0,0]
[7196380,219,false,"Ano, ale pouze pro některé pojišťovací zprostředkovatele.",2,757,false,0,0]
[4774197,220,false,"Ano.",2,758,false,0,0]
[7262304,220,true,"Ne.",3,759,false,0,0]
[1008310,220,false,"Ano, ale jen jedná-li se o úplaty za zprostředkování životního pojištění.",1,760,false,0,0]
[5514311,221,false,"Ano, ale pouze jedná-li se o úplaty za zprostředkování neživotního pojištění.",2,761,false,0,0]
[6639253,221,true,"Ne.",3,762,true,1,1]
[3710595,221,false,"Ano.",1,763,false,0,0]
[8033068,222,false,"Ano.",3,764,false,0,0]
[7831151,222,true,"Ne.",2,765,false,0,0]
[2015394,222,false,"Ano, ale jen jedná-li se o úplaty za zprostředkování životního pojištění.",1,766,false,0,0]
[3102191,223,false,"Vázaní pojišťovací zprostředkovatelé a pojišťovací makléři.",1,767,false,0,0]
[5798221,223,true,"Pojišťovací agenti a pojišťovací makléři.",2,768,true,1,1]
[9215869,223,false,"Všechny kategorie pojišťovacích zprostředkovatelů.",3,769,false,0,0]
[6320711,224,false,"Ano, pokud spolupracuje s více pojišťovnami.",2,770,false,0,0]
[7307821,224,true,"Ne.",3,771,false,0,0]
[4316585,224,false,"Ano, ale ne ročně, nýbrž každý měsíc.",1,772,false,0,0]
[2755014,225,false,"Ne.",3,773,false,0,0]
[920561,225,true,"Ano.",2,774,false,0,0]
[356415,225,false,"Ano, ale ne ročně, nýbrž každý měsíc.",1,775,false,0,0]
[7126369,226,false,"Ne.",2,776,false,0,0]
[958962,226,true,"Ano.",1,777,false,0,0]
[8908816,226,false,"Ano, ale ne ročně, nýbrž každý měsíc.",3,778,false,0,0]
[1091357,227,false,"Ano.",1,779,false,0,0]
[3322422,227,true,"Ne.",2,780,false,0,0]
[9668166,227,false,"Ano, ale ne ročně, nýbrž každý měsíc.",3,781,false,0,0]
[3389114,228,false,"Činnost nelze pozastavit.",2,782,false,0,0]
[8326734,228,true,"Nejvýše na 6 měsíců.",3,783,false,0,0]
[2087483,228,false,"Na neomezenou dobu.",1,784,false,0,0]
[4459409,229,false,"Ne, činnost nelze pozastavit.",1,785,false,0,0]
[8256107,229,true,"Ano, a to nejvýše na 6 měsíců.",2,786,false,0,0]
[8503585,229,false,"Ano, s výjimkou činnosti pojišťovacího makléře.",3,787,false,0,0]
[9723432,230,false,"Činnost nelze pozastavit.",3,788,true,0,1]
[9552051,230,true,"Nejvýše na 6 měsíců.",2,789,false,0,0]
[1476716,230,false,"Na neomezenou dobu.",1,790,false,0,0]
[5846155,231,false,"Činnost nelze pozastavit.",1,791,false,0,0]
[9182539,231,true,"Nejvýše na 6 měsíců.",2,792,false,0,0]
[9214281,231,false,"Na neomezenou dobu.",3,793,false,0,0]
[871373,232,false,"Činnost nelze pozastavit.",1,794,false,0,0]
[5018139,232,true,"Nejvýše na 6 měsíců.",3,795,false,0,0]
[2098715,232,false,"Na neomezenou dobu.",2,796,false,0,0]
[1669366,233,false,"Ne, činnost nelze pozastavit.",1,797,false,0,0]
[2395281,233,true,"Ano, a to nejvýše na 6 měsíců.",2,798,false,0,0]
[6278937,233,false,"Ano, a to na neomezenou dobu.",3,799,false,0,0]
[3318763,234,false,"Ne, činnost nelze pozastavit.",2,800,false,0,0]
[5501899,234,true,"Ano, a to nejvýše na 6 měsíců.",3,801,true,1,1]
[919653,234,false,"Ano, a to na neomezenou dobu.",1,802,false,0,0]
[3139902,235,false,"Až do výše  1 000 Kč.",1,803,false,0,0]
[7933624,235,true,"Až do výše 1 000 000 Kč.",2,804,false,0,0]
[8564054,235,false,"Žádnou.",3,805,false,{"$f":"IF(AND(C706,G706),1,0)","v":0},{"$f":"IF(G706,1,0)","v":0}]
[3512972,236,false,"Žádnou.",3,806,false,0,0]
[2520588,236,true,"Až do výše 5 000 000 Kč (jednorázově); úhrn opakovaně uložených pokut může dosáhnout až 20 000 000 Kč.",2,807,false,0,0]
[809631,236,false,"Až do výše  1 000 Kč.",1,808,false,0,0]
[9381832,237,false,"Až do výše  1 000 Kč.",3,809,false,0,0]
[5222236,237,true,"Až do výše 1 000 000 Kč.",1,810,true,1,1]
[7405005,237,false,"Žádnou.",2,811,false,0,0]
[8619759,238,false,"Žádnou.",3,812,false,0,0]
[1061312,238,true,"Až do výše 5 000 000 Kč (jednorázově); úhrn opakovaně uložených pokut může dosáhnout až 20 000 000 Kč.",1,813,false,0,0]
[7354206,238,false,"Až do výše  1 000 Kč.",2,814,false,0,0]
[1997865,239,false,"Žádnou.",1,815,false,0,0]
[4374871,239,true,"Až do výše 1 000 000 Kč.",2,816,false,0,0]
[7694902,239,false,"Až do výše  1 000 Kč.",3,817,false,0,0]
[8256661,240,false,"Žádnou.",2,818,false,0,0]
[9380832,240,true,"Až do výše 5 000 000 Kč (jednorázově); úhrn opakovaně uložených pokut může dosáhnout až 20 000 000 Kč.",3,819,false,0,0]
[4454973,240,false,"Až do výše  1 000 Kč.",1,820,false,0,0]
[3267586,241,false,"Ne.",2,821,false,0,0]
[6599644,241,true,"Ano.",3,822,false,0,0]
[1668776,241,false,"Ano, ale jen pojišťovacímu makléři.",1,823,false,0,0]
[8140459,242,false,"Ano, ale jen pojišťovacímu makléři.",3,824,false,0,0]
[3063177,242,true,"Ano.",1,825,false,0,0]
[7156716,242,false,"Ne.",2,826,false,0,0]
[2666016,243,false,"Ne.",1,827,false,0,0]
[9643366,243,true,"Ano,  na požádání.",3,828,true,1,1]
[7570569,243,false,"Ano, a to vždy z vlastní iniciativy.",2,829,false,0,0]
[9086202,244,false,"Ne.",3,830,false,0,0]
[3022578,244,true,"Ano,  na požádání.",2,831,false,0,0]
[2638621,244,false,"Ano, a to vždy z vlastní iniciativy.",1,832,false,0,0]
[8889980,245,false,"Ano, ale jen nemateriální povahy.",3,833,false,0,0]
[6712443,245,true,"Ne, v žádném případě.",1,834,false,0,0]
[7890440,245,false,"Ano, pokud to nevylučuje smlouva s pojišťovnou.",2,835,false,0,0]
[7295291,246,false,"Ano, a to vždy z vlastní iniciativy.",2,836,false,0,0]
[9639208,246,true,"Ano,  na požádání.",3,837,true,1,1]
[2807044,246,false,"Ne.",1,838,false,0,0]
[7079781,247,false,"Ne.",2,839,false,0,0]
[9807835,247,true,"Ano,  na požádání.",3,840,false,0,0]
[4359879,247,false,"Ano, a to vždy z vlastní iniciativy.",1,841,false,0,0]
[4370128,248,false,"Ne.",1,842,false,0,0]
[7715235,248,true,"Ano,  na požádání.",3,843,true,1,1]
[4427349,248,false,"Ano, a to vždy z vlastní iniciativy.",2,844,false,0,0]
[3423697,249,false,"Ne.",2,845,false,0,0]
[911583,249,true,"Ano,  na požádání.",1,846,false,0,0]
[9392140,249,false,"Ano, a to vždy z vlastní iniciativy.",3,847,false,0,0]
[7992825,250,false,"Ne, v žádném případě.",2,848,false,0,0]
[9438695,250,true,"Ano,  na požádání.",3,849,false,0,0]
[5232311,250,false,"Ano, a to vždy z vlastní iniciativy.",1,850,false,0,0]
[1832786,251,false,"Ne, v žádném případě.",1,851,false,0,0]
[6962392,251,true,"Ano,  na požádání.",3,852,false,0,0]
[6155483,251,false,"Ano, a to vždy z vlastní iniciativy.",2,853,false,0,0]
[6705483,252,false,"Ne, v žádném případě.",2,854,false,0,0]
[5042666,252,true,"Ano, na požádání.",1,855,false,0,0]
[6944570,252,false,"Ano, a to vždy z vlastní iniciativy.",3,856,false,0,0]
[9873499,253,false,"Podle vlastního uvážení.",3,857,false,0,0]
[7057782,253,true,"Ano.",2,858,false,0,0]
[1966725,253,false,"Ne.",1,859,false,0,0]
[4729521,254,false,"Podle vlastního uvážení.",2,860,false,0,0]
[3347260,254,true,"Ano.",1,861,false,0,0]
[8650659,254,false,"Ne.",3,862,false,0,0]
[3645614,255,false,"Podle vlastního uvážení.",3,863,false,0,0]
[2820296,255,true,"Ano.",2,864,false,0,0]
[2192611,255,false,"Ne.",1,865,false,0,0]
[5261580,256,false,"Zprostředkovává pojištění.",1,866,false,0,0]
[6871934,256,true,"Šetření nutné ke zjištění rozsahu její povinnosti pojišťovny plnit ze sjednaného pojištění.",3,867,false,0,0]
[6464088,256,false,"Provádí správu pojištění.",2,868,false,0,0]
[3792974,257,false,"Ne, v žádném případě.",1,869,false,{"$f":"IF(AND(C770,G770),1,0)","v":0},{"$f":"IF(G770,1,0)","v":0}]
[5365275,257,true,"Ano.",3,870,false,0,0]
[4346493,257,false,"Ne, spolupracuje vždy pouze s jednou pojišťovnou.",2,871,false,0,0]
[3183479,258,false,"Ano, ale jen pokud hodlá likvidovat pojistné událostí nad 1 000 000 Kč.",1,872,false,0,0]
[8705601,258,true,"Ano.",3,873,false,0,0]
[7914992,258,false,"Ne, odpovídá za ni pojišťovna.",2,874,false,0,0]
[7334548,259,false,"Ministerstvo financí.",3,875,false,0,0]
[4807694,259,true,"Česká národní banka.",2,876,false,0,0]
[4567820,259,false,"Komora samostatných likvidátorů.\nKomora samostatných likvidátorů.",1,877,false,0,0]
[623745,260,false,"Ano, u Ministerstva vnitra.",1,878,false,0,0]
[822061,260,true,"Ano, v registru vedeném Českou národní bankou.",2,879,false,0,0]
[2003846,260,false,"Ne.",3,880,false,0,0]
[2503289,261,false,"Ministerstvo vnitra.",3,881,false,0,0]
[745560,261,true,"Česká národní banka, která mu vydá osvědčení.",1,882,false,0,0]
[1171947,261,false,"Ministerstvo práce a sociálních věcí.",2,883,false,0,0]
[1308191,262,false,"Pouze pojišťovny.",1,884,false,0,0]
[6028244,262,true,"Každý, neboť registr je veřejně přístupný.",2,885,false,0,0]
[8356732,262,false,"Jen samostatný likvidátor pojistných událostí.",3,886,false,0,0]
[6280325,263,false,"Střední kvalifikační stupeň odborné způsobilosti.",3,887,false,0,0]
[4657373,263,true,"Základní kvalifikační stupeň odborné způsobilosti.",2,888,false,0,0]
[2457747,263,false,"Vyšší kvalifikační stupeň odborné způsobilosti.",1,889,false,0,0]
[2137071,264,false,"Ano, po 2 letech.",2,890,false,0,0]
[8232766,264,true,"Ano, po 5 letech.",3,891,false,0,0]
[1419680,264,false,"Ano, po 10 letech.",1,892,false,0,0]
[6811940,265,false,"Ano.",1,893,false,0,0]
[7651151,265,true,"Ne.",2,894,false,0,0]
[8460544,265,false,"Ano, jen u toho, který spolupracuje s více pojišťovnami.",3,895,false,0,0]
[2926288,266,false,"Ne, oznamuje ji jen Policii ČR.",1,896,false,0,0]
[8222293,266,true,"Ano, a to bez zbytečného odkladu.",3,897,false,0,0]
[8129564,266,false,"Ne, neboť tuto povinnost mají orgány činné v trestním řízení.",2,898,false,0,0]
[5396886,267,false,"Čestným prohlášením.",1,899,false,0,0]
[9502513,267,true,"Výpisem z Rejstříku trestů.",3,900,false,0,0]
[8837854,267,false,"Potvrzením pojišťovny.",2,901,false,0,0]
[7750167,268,false,"Osvědčením vydaným Českou národní bankou.",2,902,false,0,0]
[4633225,268,true,"Výpisem z Rejstříku trestů  a doložením prohlášení o splnění ostatních zákonem stanovených podmínek důvěryhodnosti.",1,903,false,0,0]
[9999065,268,false,"Jen výpisem z Rejstříku trestů.",3,904,false,0,0]
[5231499,269,false,"Ne, neboť tuto povinnost má insolvenční správce právnické osoby.",2,905,false,0,0]
[7419330,269,true,"Ano, a to bez zbytečného odkladu.",3,906,false,0,0]
[1575442,269,false,"Ano, a to do 1 měsíce od okamžiku, kdy ke ztrátě důvěryhodnosti došlo.",1,907,false,0,0]
[3823292,270,false,"Musí požádat znovu o zápis do registru.",3,908,false,0,0]
[2306182,270,true,"Nesmí vykonávat činnost samostatného likvidátora pojistných událostí.",1,909,false,0,0]
[3053192,270,false,"Může vykonávat činnost, ale musí se za něj zaručit pojišťovna.",2,910,false,0,0]
[6600125,271,false,"Ano, jsou uvedeny v obchodním zákoníku.",2,911,false,0,0]
[5470433,271,true,"Ano, jsou uvedeny v zákoně o pojišťovacích zprostředkovatelích a samostatných likvidátorech pojistných událostí.",1,912,false,0,0]
[9701185,271,false,"Ne, žádný zákon to nestanoví.",3,913,false,0,0]
[6358906,272,false,"Ne, podání žádosti je osvobozeno od správního poplatku.",3,914,false,0,0]
[2710815,272,true,"Ano, podání žádosti podléhá správnímu poplatku ve výši 10 000 Kč.",2,915,false,0,0]
[1554868,272,false,"Ano, podání žádosti podléhá správnímu poplatku ve výši 1 500 Kč.",1,916,false,0,0]
[698368,273,false,"Ne.",1,917,false,0,0]
[8115891,273,true,"Ano, a to bez zbytečného odkladu.",3,918,false,0,0]
[5694254,273,false,"Ano, a to do 1 měsíce.",2,919,false,0,0]
[341368,274,false,"Ne.",1,920,false,0,0]
[3628420,274,true,"Ano.",2,921,false,0,0]
[3957082,274,false,"Ne, pokud spolupracuje pouze s jednou pojišťovnou.",3,922,false,0,0]
[6776639,275,false,"Ne.",3,923,false,0,0]
[3776343,275,true,"Ano.",1,924,false,0,0]
[5777108,275,false,"Ano, ale jen ten, který spolupracuje s více pojišťovnami.",2,925,false,0,0]
[2650179,276,false,"Činnost nelze pozastavit, lze jen odejmout povolení k jejímu provozování.",2,926,false,0,0]
[7779868,276,true,"Maximálně na 6 měsíců.",3,927,false,0,0]
[2019095,276,false,"Na neomezenou dobu.",1,928,false,0,0]
[9791526,277,false,"Ne, činnost nelze pozastavit, lze jen odejmout povolení k jejímu provozování.",3,929,false,0,0]
[6878897,277,true,"Ano, a to nejvýše na 6 měsíců.",1,930,false,0,0]
[8777795,277,false,"Ano, a to na neomezenou dobu.",2,931,false,0,0]
[473068,278,false,"Až do výše  1 000 Kč.",1,932,false,0,0]
[2586347,278,true,"Až do výše 1 000 000 Kč.",2,933,false,{"$f":"IF(AND(C834,G834),1,0)","v":0},{"$f":"IF(G834,1,0)","v":0}]
[6524218,278,false,"Žádnou.",3,934,false,0,0]
[8252476,279,false,"Žádnou.",2,935,false,0,0]
[9317093,279,true,"Až do výše 5 000 000 Kč (jednorázově); úhrn opakovaně uložených pokut může dosáhnout až 20 000 000 Kč.",3,936,false,0,0]
[6750073,279,false,"Až do výše  1 000 Kč.",1,937,false,0,0]
[4445640,280,false,"Ne.",1,938,false,0,0]
[5750418,280,true,"Ano, na požádání.",3,939,false,0,0]
[5536644,280,false,"Ano, a to vždy z vlastní iniciativy.",2,940,false,0,0]
[4451281,281,false,"Ne.",1,941,false,0,0]
[4762424,281,true,"Ano,  na požádání.",2,942,false,0,0]
[7038835,281,false,"Ano, a to vždy z vlastní iniciativy.",3,943,false,0,0]
[7455087,282,false,"Ano, ale jen nemateriální povahy.",3,944,false,0,0]
[3844880,282,true,"Ne, v žádném případě.",2,945,false,0,0]
[3634850,282,false,"Ano, pokud to nevylučuje smlouva s pojišťovnou.",1,946,false,0,0]
[1761890,283,false,"Ne, v žádném případě.",1,947,false,0,0]
[1764924,283,true,"Ano,  na požádání.",2,948,false,0,0]
[7978355,283,false,"Ano, a to vždy z vlastní iniciativy.",3,949,false,0,0]
[2545460,284,false,"Pojištění nemoci.",1,950,false,0,0]
[3596952,284,true,"Pojištění pro případ dožití nebo pro případ smrti nebo dožití nebo důchodové pojištění.",3,951,true,1,1]
[3059053,284,false,"Úrazové pojištění.",2,952,false,0,0]
[6198019,285,false,"Zákoně o pojistné smlouvě.",3,953,false,0,0]
[4080316,285,true,"Zákoně o daních z příjmů, v platném znění.",2,954,false,0,0]
[2910843,285,false,"Žádném zákoně.",1,955,false,0,0]
[5862009,286,false,"Ne.",2,956,false,0,0]
[8055264,286,true,"Ano.",3,957,false,0,0]
[210241,286,false,"Ano, po dohodě s finančním úřadem.",1,958,false,0,0]
[1916087,287,false,"120 měsíců.",1,959,false,0,0]
[9161220,287,true,"60 měsíců.",2,960,false,0,0]
[9712810,287,false,"12 měsíců.",3,961,false,0,0]
[3072077,288,false,"40 let.",2,962,false,0,0]
[2327161,288,true,"60 let.",1,963,false,0,0]
[3438251,288,false,"50 let.",3,964,false,0,0]
[2850954,289,false,"24 000 Kč.",1,965,true,0,1]
[8249930,289,true,"12 000 Kč.",3,966,false,0,0]
[5516747,289,false,"1 000 Kč.",2,967,false,0,0]
[200062,290,false,"Ano, a to sazbou dohodnutou s finančním úřadem.",1,968,false,0,0]
[6073822,290,true,"Ano, a to sazbou 15 % ze základu daně, který se rovná odkupnému minus zaplacené pojistné pojistníkem.",3,969,false,0,0]
[556422,290,false,"Je osvobozeno od daně z příjmů.",2,970,false,0,0]
[5171977,291,false,"Ano, a to sazbou dohodnutou s finančním úřadem.",2,971,false,0,0]
[4010250,291,true,"Ano, a to sazbou 15 % ze základu daně, který se rovná pojistnému plnění mínus zaplacené pojistné.",1,972,true,1,1]
[8815619,291,false,"Je osvobozené od daně z příjmů.",3,973,false,0,0]
[2313942,292,false,"Podmínky podnikání na pojistném trhu.",1,974,false,0,0]
[2450688,292,true,"Etické normy jednání a chování subjektů podnikajících na pojistném trhu.",2,975,true,1,1]
[7020306,292,false,"Principy odměňování pojišťovacích zprostředkovatelů.",3,976,false,0,0]
[7746877,293,false,"Pouze v souladu s obchodními zájmy pojišťovny.",3,977,false,0,0]
[4135891,293,true,"V souladu s obchodními zájmy účastníků zprostředkovávaného obchodu a bez jakékoliv předpojatosti či zvýhodňování.",2,978,false,0,0]
[3637672,293,false,"Pouze v souladu se svými obchodními zájmy.",1,979,false,0,0]
[6000860,294,false,"Sjedná pojištění, ale oznámí to příslušnému pojistiteli.",2,980,false,0,0]
[5680706,294,true,"Nesjednává pojištění.",1,981,true,1,1]
[8207940,294,false,"Sjedná pojištění, ale oznámí případ policii.",3,982,false,0,0]
[300921,295,false,"Pravdivé údaje.",1,983,false,0,0]
[1872930,295,true,"Nepravdivé nebo hrubě zkreslené údaje nebo podstatné údaje zamlčí.",2,984,false,0,0]
[2979044,295,false,"Žádné údaje.",3,985,false,0,0]
[4069272,296,false,"Nezabrání vzniku pojistné události.",3,986,false,0,0]
[1947880,296,true,"Úmyslně vyvolá nebo předstírá událost, s níž je spojeno právo na plnění z pojištění.",2,987,false,0,0]
[1739180,296,false,"Zabrání vzniku pojistné události.",1,988,false,0,0]
[1458909,297,false,"Ne.",2,989,false,0,0]
[6893839,297,true,"Ano.",3,990,false,0,0]
[1181701,297,false,"Ano, ale finanční částka se nebere v úvahu.",1,991,false,0,0]
[null,298,false,null,1,992,false,0,0]
[null,298,true,null,2,993,false,0,0]
[null,298,false,null,3,994,false,0,0]
[null,299,false,null,1,995,false,0,0]
[null,299,true,null,2,996,false,0,0]
[null,299,false,null,3,997,false,{"$f":"IF(AND(C898,G898),1,0)","v":0},{"$f":"IF(G898,1,0)","v":0}]
[null,300,false,null,1,998,false,0,0]
[null,300,true,null,2,999,false,0,0]
[null,300,false,null,3,1000,false,0,0]
[null,301,false,null,1,1001,false,0,0]
[null,301,true,null,2,1002,false,0,0]
[null,301,false,null,3,1003,false,0,0]
[null,302,false,null,1,1004,false,0,0]
[null,302,true,null,2,1005,false,0,0]
[null,302,false,null,3,1006,false,0,0]
[null,303,false,null,1,1007,false,0,0]
[null,303,true,null,2,1008,false,0,0]
[null,303,false,null,3,1009,false,0,0]
[null,304,false,null,1,1010,false,0,0]
[null,304,true,null,2,1011,false,0,0]
[null,304,false,null,3,1012,false,0,0]
[null,305,false,null,1,1013,false,0,0]
[null,305,true,null,2,1014,false,0,0]
[null,305,false,null,3,1015,false,0,0]
[null,306,false,null,1,1016,false,0,0]
[null,306,true,null,2,1017,false,0,0]
[null,306,false,null,3,1018,false,0,0]
[null,307,false,null,1,1019,false,0,0]
[null,307,true,null,2,1020,false,0,0]
[null,307,false,null,3,1021,false,0,0]
[null,308,false,null,1,1022,false,0,0]
[null,308,true,null,2,1023,false,0,0]
[null,308,false,null,3,1024,false,0,0]
[null,309,false,null,1,1025,false,0,0]
[null,309,true,null,2,1026,false,0,0]
[null,309,false,null,3,1027,false,0,0]
[null,310,false,null,1,1028,false,0,0]
[null,310,true,null,2,1029,false,0,0]
[null,310,false,null,3,1030,false,0,0]
[null,311,false,null,1,1031,false,0,0]
[null,311,true,null,2,1032,false,0,0]
[null,311,false,null,3,1033,false,0,0]
[null,312,false,null,1,1034,false,0,0]
[null,312,true,null,2,1035,false,0,0]
[null,312,false,null,3,1036,false,0,0]
[null,313,false,null,1,1037,false,0,0]
[null,313,true,null,2,1038,false,0,0]
[null,313,false,null,3,1039,false,0,0]
[null,314,false,null,1,1040,false,0,0]
[null,314,true,null,2,1041,false,0,0]
[null,314,false,null,3,1042,false,0,0]
[null,315,false,null,1,1043,false,0,0]
[null,315,true,null,2,1044,false,0,0]
[null,315,false,null,3,1045,false,0,0]
[null,316,false,null,1,1046,false,0,0]
[null,316,true,null,2,1047,false,0,0]
[null,316,false,null,3,1048,false,0,0]
[null,317,false,null,1,1049,false,0,0]
[null,317,true,null,2,1050,false,0,0]
[null,317,false,null,3,1051,false,0,0]
[null,318,false,null,1,1052,false,0,0]
[null,318,true,null,2,1053,false,0,0]
[null,318,false,null,3,1054,false,0,0]
[null,319,false,null,1,1055,false,0,0]
[null,319,true,null,2,1056,false,0,0]
[null,319,false,null,3,1057,false,0,0]
[null,320,false,null,1,1058,false,0,0]
[null,320,true,null,2,1059,false,0,0]
[null,320,false,null,3,1060,false,0,0]
[null,321,false,null,1,1061,false,{"$f":"IF(AND(C962,G962),1,0)","v":0},{"$f":"IF(G962,1,0)","v":0}]
[null,321,true,null,2,1062,false,0,0]
[null,321,false,null,3,1063,false,0,0]
[null,322,false,null,1,1064,false,0,0]
[null,322,true,null,2,1065,false,0,0]
[null,322,false,null,3,1066,false,0,0]
[null,323,false,null,1,1067,false,0,0]
[null,323,true,null,2,1068,false,0,0]
[null,323,false,null,3,1069,false,0,0]
[null,324,false,null,1,1070,false,0,0]
[null,324,true,null,2,1071,false,0,0]
[null,324,false,null,3,1072,false,0,0]
[null,325,false,null,1,1073,false,0,0]
[null,325,true,null,2,1074,false,0,0]
[null,325,false,null,3,1075,false,0,0]
[null,326,false,null,1,1076,false,0,0]
[null,326,true,null,2,1077,false,0,0]
[null,326,false,null,3,1078,false,0,0]
[null,327,false,null,1,1079,false,0,0]
[null,327,true,null,2,1080,false,0,0]
[null,327,false,null,3,1081,false,0,0]
[null,328,false,null,1,1082,false,0,0]
[null,328,true,null,2,1083,false,0,0]
[null,328,false,null,3,1084,false,0,0]
[null,329,false,null,1,1085,false,0,0]
[null,329,true,null,2,1086,false,0,0]
[null,329,false,null,3,1087,false,0,0]
[null,330,false,null,1,1088,false,0,0]
[null,330,true,null,2,1089,false,0,0]
[null,330,false,null,3,1090,false,0,0]
[null,331,false,null,1,1091,false,0,0]
[null,331,true,null,2,1092,false,0,0]
[null,331,false,null,3,1093,false,0,0]
[null,332,false,null,1,1094,false,0,0]
[null,332,true,null,2,1095,false,0,0]
[null,332,false,null,3,1096,false,0,0]
[null,333,false,null,1,1097,false,0,0]
[null,333,true,null,2,1098,false,0,0]
[null,333,false,null,3,1099,false,0,0]
[null,334,false,null,1,1100,false,0,0]
[null,334,true,null,2,1101,false,0,0]
[null,334,false,null,3,1102,false,0,0]
[null,335,false,null,1,1103,false,0,0]
[null,335,true,null,2,1104,false,0,0]
[null,335,false,null,3,1105,false,0,0]
[null,336,false,null,1,1106,false,0,0]
[null,336,true,null,2,1107,false,0,0]
[null,336,false,null,3,1108,false,0,0]
[null,337,false,null,1,1109,false,0,0]
[null,337,true,null,2,1110,false,0,0]
[null,337,false,null,3,1111,false,0,0]
[null,338,false,null,1,1112,false,0,0]
[null,338,true,null,2,1113,false,0,0]
[null,338,false,null,3,1114,false,0,0]
[null,339,false,null,1,1115,false,0,0]
[null,339,true,null,2,1116,false,0,0]
[null,339,false,null,3,1117,false,0,0]
[null,340,false,null,1,1118,false,0,0]
[null,340,true,null,2,1119,false,0,0]
[null,340,false,null,3,1120,false,0,0]
[null,341,false,null,1,1121,false,0,0]
[null,341,true,null,2,1122,false,0,0]
[null,341,false,null,3,1123,false,0,0]
[null,342,false,null,1,1124,false,0,0]
[null,342,true,null,2,1125,false,{"$f":"IF(AND(C1026,G1026),1,0)","v":0},{"$f":"IF(G1026,1,0)","v":0}]
[null,342,false,null,3,1126,false,0,0]
[null,343,false,null,1,1127,false,0,0]
[null,343,true,null,2,1128,false,0,0]
[null,343,false,null,3,1129,false,0,0]
[null,344,false,null,1,1130,false,0,0]
[null,344,true,null,2,1131,false,0,0]
[null,344,false,null,3,1132,false,0,0]
[null,345,false,null,1,1133,false,0,0]
[null,345,true,null,2,1134,false,0,0]
[null,345,false,null,3,1135,false,0,0]
[null,346,false,null,1,1136,false,0,0]
[null,346,true,null,2,1137,false,0,0]
[null,346,false,null,3,1138,false,0,0]
[null,347,false,null,1,1139,false,0,0]
[null,347,true,null,2,1140,false,0,0]
[null,347,false,null,3,1141,false,0,0]
[null,348,false,null,1,1142,false,0,0]
[null,348,true,null,2,1143,false,0,0]
[null,348,false,null,3,1144,false,0,0]
[null,349,false,null,1,1145,false,0,0]
[null,349,true,null,2,1146,false,0,0]
[null,349,false,null,3,1147,false,0,0]
[null,350,false,null,1,1148,false,0,0]
[null,350,true,null,2,1149,false,0,0]
[null,350,false,null,3,1150,false,0,0]
[null,351,false,null,1,1151,false,0,0]
[null,351,true,null,2,1152,false,0,0]
[null,351,false,null,3,1153,false,0,0]
[null,352,false,null,1,1154,false,0,0]
[null,352,true,null,2,1155,false,0,0]
[null,352,false,null,3,1156,false,0,0]
[null,353,false,null,1,1157,false,0,0]
[null,353,true,null,2,1158,false,0,0]
[null,353,false,null,3,1159,false,0,0]
[null,354,false,null,1,1160,false,0,0]
[null,354,true,null,2,1161,false,0,0]
[null,354,false,null,3,1162,false,0,0]
[null,355,false,null,1,1163,false,0,0]
[null,355,true,null,2,1164,false,0,0]
[null,355,false,null,3,1165,false,0,0]
[null,356,false,null,1,1166,false,0,0]
[null,356,true,null,2,1167,false,0,0]
[null,356,false,null,3,1168,false,0,0]
[null,357,false,null,1,1169,false,0,0]
[null,357,true,null,2,1170,false,0,0]
[null,357,false,null,3,1171,false,0,0]
[null,358,false,null,1,1172,false,0,0]
[null,358,true,null,2,1173,false,0,0]
[null,358,false,null,3,1174,false,0,0]
[null,359,false,null,1,1175,false,0,0]
[null,359,true,null,2,1176,false,0,0]
[null,359,false,null,3,1177,false,0,0]
[null,360,false,null,1,1178,false,0,0]
[null,360,true,null,2,1179,false,0,0]
[null,360,false,null,3,1180,false,0,0]
[null,361,false,null,1,1181,false,0,0]
[null,361,true,null,2,1182,false,0,0]
[null,361,false,null,3,1183,false,0,0]
[null,362,false,null,1,1184,false,0,0]
[null,362,true,null,2,1185,false,0,0]
[null,362,false,null,3,1186,false,0,0]
[null,363,false,null,1,1187,false,0,0]
[null,363,true,null,2,1188,false,0,0]
[null,363,false,null,3,1189,false,{"$f":"IF(AND(C1090,G1090),1,0)","v":0},{"$f":"IF(G1090,1,0)","v":0}]
[null,364,false,null,1,1190,false,0,0]
[null,364,true,null,2,1191,false,0,0]
[null,364,false,null,3,1192,false,0,0]
[null,365,false,null,1,1193,false,0,0]
[null,365,true,null,2,1194,false,0,0]
[null,365,false,null,3,1195,false,0,0]
[null,366,false,null,1,1196,false,0,0]
[null,366,true,null,2,1197,false,0,0]
[null,366,false,null,3,1198,false,0,0]
[null,367,false,null,1,1199,false,0,0]
[null,367,true,null,2,1200,false,0,0]
[null,367,false,null,3,1201,false,0,0]
[null,368,false,null,1,1202,false,0,0]
[null,368,true,null,2,1203,false,0,0]
[null,368,false,null,3,1204,false,0,0]
[null,369,false,null,1,1205,false,0,0]
[null,369,true,null,2,1206,false,0,0]
[null,369,false,null,3,1207,false,0,0]
[null,370,false,null,1,1208,false,0,0]
[null,370,true,null,2,1209,false,0,0]
[null,370,false,null,3,1210,false,0,0]
[null,371,false,null,1,1211,false,0,0]
[null,371,true,null,2,1212,false,0,0]
[null,371,false,null,3,1213,false,0,0]
[null,372,false,null,1,1214,false,0,0]
[null,372,true,null,2,1215,false,0,0]
[null,372,false,null,3,1216,false,0,0]
[null,373,false,null,1,1217,false,0,0]
[null,373,true,null,2,1218,false,0,0]
[null,373,false,null,3,1219,false,0,0]
[null,374,false,null,1,1220,false,0,0]
[null,374,true,null,2,1221,false,0,0]
[null,374,false,null,3,1222,false,0,0]
[null,375,false,null,1,1223,false,0,0]
[null,375,true,null,2,1224,false,0,0]
[null,375,false,null,3,1225,false,0,0]
[null,376,false,null,1,1226,false,0,0]
[null,376,true,null,2,1227,false,0,0]
[null,376,false,null,3,1228,false,0,0]
[null,377,false,null,1,1229,false,0,0]
[null,377,true,null,2,1230,false,0,0]
[null,377,false,null,3,1231,false,0,0]
[null,378,false,null,1,1232,false,0,0]
[null,378,true,null,2,1233,false,0,0]
[null,378,false,null,3,1234,false,0,0]
[null,379,false,null,1,1235,false,0,0]
[null,379,true,null,2,1236,false,0,0]
[null,379,false,null,3,1237,false,0,0]
[null,380,false,null,1,1238,false,0,0]
[null,380,true,null,2,1239,false,0,0]
[null,380,false,null,3,1240,false,0,0]
[null,381,false,null,1,1241,false,0,0]
[null,381,true,null,2,1242,false,0,0]
[null,381,false,null,3,1243,false,0,0]
[null,382,false,null,1,1244,false,0,0]
[null,382,true,null,2,1245,false,0,0]
[null,382,false,null,3,1246,false,0,0]
[null,383,false,null,1,1247,false,0,0]
[null,383,true,null,2,1248,false,0,0]
[null,383,false,null,3,1249,false,0,0]
[null,384,false,null,1,1250,false,0,0]
[null,384,true,null,2,1251,false,0,0]
[null,384,false,null,3,1252,false,0,0]
[null,385,false,null,1,1253,false,{"$f":"IF(AND(C1154,G1154),1,0)","v":0},{"$f":"IF(G1154,1,0)","v":0}]
[null,385,true,null,2,1254,false,0,0]
[null,385,false,null,3,1255,false,0,0]
[null,386,false,null,1,1256,false,0,0]
[null,386,true,null,2,1257,false,0,0]
[null,386,false,null,3,1258,false,0,0]
[null,387,false,null,1,1259,false,0,0]
[null,387,true,null,2,1260,false,0,0]
[null,387,false,null,3,1261,false,0,0]
[null,388,false,null,1,1262,false,0,0]
[null,388,true,null,2,1263,false,0,0]
[null,388,false,null,3,1264,false,0,0]
[null,389,false,null,1,1265,false,0,0]
[null,389,true,null,2,1266,false,0,0]
[null,389,false,null,3,1267,false,0,0]
[null,390,false,null,1,1268,false,0,0]
[null,390,true,null,2,1269,false,0,0]
[null,390,false,null,3,1270,false,0,0]
[null,391,false,null,1,1271,false,0,0]
[null,391,true,null,2,1272,false,0,0]
[null,391,false,null,3,1273,false,0,0]
[null,392,false,null,1,1274,false,0,0]
[null,392,true,null,2,1275,false,0,0]
[null,392,false,null,3,1276,false,0,0]
[null,393,false,null,1,1277,false,0,0]
[null,393,true,null,2,1278,false,0,0]
[null,393,false,null,3,1279,false,0,0]
[null,394,false,null,1,1280,false,0,0]
[null,394,true,null,2,1281,false,0,0]
[null,394,false,null,3,1282,false,0,0]
[null,395,false,null,1,1283,false,0,0]
[null,395,true,null,2,1284,false,0,0]
[null,395,false,null,3,1285,false,0,0]
[null,396,false,null,1,1286,false,0,0]
[null,396,true,null,2,1287,false,0,0]
[null,396,false,null,3,1288,false,0,0]
[null,397,false,null,1,1289,false,0,0]
[null,397,true,null,2,1290,false,0,0]
[null,397,false,null,3,1291,false,0,0]
[null,398,false,null,1,1292,false,0,0]
[null,398,true,null,2,1293,false,0,0]
[null,398,false,null,3,1294,false,0,0]
[null,399,false,null,1,1295,false,0,0]
[null,399,true,null,2,1296,false,0,0]
[null,399,false,null,3,1297,false,0,0]
[null,400,false,null,1,1298,false,0,0]
[null,400,true,null,2,1299,false,0,0]
[null,400,false,null,3,1300,false,0,0]
[null,401,false,null,1,1301,false,0,0]
[null,401,true,null,2,1302,false,0,0]
[null,401,false,null,3,1303,false,0,0]
[null,402,false,null,1,1304,false,0,0]
[null,402,true,null,2,1305,false,0,0]
[null,402,false,null,3,1306,false,0,0]
[null,403,false,null,1,1307,false,0,0]
[null,403,true,null,2,1308,false,0,0]
[null,403,false,null,3,1309,false,0,0]
[null,404,false,null,1,1310,false,0,0]
[null,404,true,null,2,1311,false,0,0]
[null,404,false,null,3,1312,false,0,0]
[null,405,false,null,1,1313,false,0,0]
[null,405,true,null,2,1314,false,0,0]
[null,405,false,null,3,1315,false,0,0]
[null,406,false,null,1,1316,false,0,0]
[null,406,true,null,2,1317,false,{"$f":"IF(AND(C1218,G1218),1,0)","v":0},{"$f":"IF(G1218,1,0)","v":0}]
[null,406,false,null,3,1318,false,0,0]
[null,407,false,null,1,1319,false,0,0]
[null,407,true,null,2,1320,false,0,0]
[null,407,false,null,3,1321,false,0,0]
[null,408,false,null,1,1322,false,0,0]
[null,408,true,null,2,1323,false,0,0]
[null,408,false,null,3,1324,false,0,0]
[null,409,false,null,1,1325,false,0,0]
[null,409,true,null,2,1326,false,0,0]
[null,409,false,null,3,1327,false,0,0]
[null,410,false,null,1,1328,false,0,0]
[null,410,true,null,2,1329,false,0,0]
[null,410,false,null,3,1330,false,0,0]
[null,411,false,null,1,1331,false,0,0]
[null,411,true,null,2,1332,false,0,0]
[null,411,false,null,3,1333,false,0,0]
[null,412,false,null,1,1334,false,0,0]
[null,412,true,null,2,1335,false,0,0]
[null,412,false,null,3,1336,false,0,0]
[null,413,false,null,1,1337,false,0,0]
[null,413,true,null,2,1338,false,0,0]
[null,413,false,null,3,1339,false,0,0]
[null,414,false,null,1,1340,false,0,0]
[null,414,true,null,2,1341,false,0,0]
[null,414,false,null,3,1342,false,0,0]
[null,415,false,null,1,1343,false,0,0]
[null,415,true,null,2,1344,false,0,0]
[null,415,false,null,3,1345,false,0,0]
[null,416,false,null,1,1346,false,0,0]
[null,416,true,null,2,1347,false,0,0]
[null,416,false,null,3,1348,false,0,0]
[null,417,false,null,1,1349,false,0,0]
[null,417,true,null,2,1350,false,0,0]
[null,417,false,null,3,1351,false,0,0]
[null,418,false,null,1,1352,false,0,0]
[null,418,true,null,2,1353,false,0,0]
[null,418,false,null,3,1354,false,0,0]
[null,419,false,null,1,1355,false,0,0]
[null,419,true,null,2,1356,false,0,0]
[null,419,false,null,3,1357,false,0,0]
[null,420,false,null,1,1358,false,0,0]
[null,420,true,null,2,1359,false,0,0]
[null,420,false,null,3,1360,false,0,0]
[null,421,false,null,1,1361,false,0,0]
[null,421,true,null,2,1362,false,0,0]
[null,421,false,null,3,1363,false,0,0]
[null,422,false,null,1,1364,false,0,0]
[null,422,true,null,2,1365,false,0,0]
[null,422,false,null,3,1366,false,0,0]
[null,423,false,null,1,1367,false,0,0]
[null,423,true,null,2,1368,false,0,0]
[null,423,false,null,3,1369,false,0,0]
[null,424,false,null,1,1370,false,0,0]
[null,424,true,null,2,1371,false,0,0]
[null,424,false,null,3,1372,false,0,0]
[null,425,false,null,1,1373,false,0,0]
[null,425,true,null,2,1374,false,0,0]
[null,425,false,null,3,1375,false,0,0]
[null,426,false,null,1,1376,false,0,0]
[null,426,true,null,2,1377,false,0,0]
[null,426,false,null,3,1378,false,0,0]
[null,427,false,null,1,1379,false,0,0]
[null,427,true,null,2,1380,false,0,0]
[null,427,false,null,3,1381,false,{"$f":"IF(AND(C1282,G1282),1,0)","v":0},{"$f":"IF(G1282,1,0)","v":0}]
[null,428,false,null,1,1382,false,0,0]
[null,428,true,null,2,1383,false,0,0]
[null,428,false,null,3,1384,false,0,0]
[null,429,false,null,1,1385,false,0,0]
[null,429,true,null,2,1386,false,0,0]
[null,429,false,null,3,1387,false,0,0]
[null,430,false,null,1,1388,false,0,0]
[null,430,true,null,2,1389,false,0,0]
[null,430,false,null,3,1390,false,0,0]
[null,431,false,null,1,1391,false,0,0]
[null,431,true,null,2,1392,false,0,0]
[null,431,false,null,3,1393,false,0,0]
[null,432,false,null,1,1394,false,0,0]
[null,432,true,null,2,1395,false,0,0]
[null,432,false,null,3,1396,false,0,0]
[null,433,false,null,1,1397,false,0,0]
[null,433,true,null,2,1398,false,0,0]
[null,433,false,null,3,1399,false,0,0]
[null,434,false,null,1,1400,false,0,0]
[null,434,true,null,2,1401,false,0,0]
[null,434,false,null,3,1402,false,0,0]
[null,435,false,null,1,1403,false,0,0]
[null,435,true,null,2,1404,false,0,0]
[null,435,false,null,3,1405,false,0,0]
[null,436,false,null,1,1406,false,0,0]
[null,436,true,null,2,1407,false,0,0]
[null,436,false,null,3,1408,false,0,0]
[null,437,false,null,1,1409,false,0,0]
[null,437,true,null,2,1410,false,0,0]
[null,437,false,null,3,1411,false,0,0]
[null,438,false,null,1,1412,false,0,0]
[null,438,true,null,2,1413,false,0,0]
[null,438,false,null,3,1414,false,0,0]
[null,439,false,null,1,1415,false,0,0]
[null,439,true,null,2,1416,false,0,0]
[null,439,false,null,3,1417,false,0,0]
[null,440,false,null,1,1418,false,0,0]
[null,440,true,null,2,1419,false,0,0]
[null,440,false,null,3,1420,false,0,0]
[null,441,false,null,1,1421,false,0,0]
[null,441,true,null,2,1422,false,0,0]
[null,441,false,null,3,1423,false,0,0]
[null,442,false,null,1,1424,false,0,0]
[null,442,true,null,2,1425,false,0,0]
[null,442,false,null,3,1426,false,0,0]
[null,443,false,null,1,1427,false,0,0]
[null,443,true,null,2,1428,false,0,0]
[null,443,false,null,3,1429,false,0,0]
[null,444,false,null,1,1430,false,0,0]
[null,444,true,null,2,1431,false,0,0]
[null,444,false,null,3,1432,false,0,0]
[null,445,false,null,1,1433,false,0,0]
[null,445,true,null,2,1434,false,0,0]
[null,445,false,null,3,1435,false,0,0]
[null,446,false,null,1,1436,false,0,0]
[null,446,true,null,2,1437,false,0,0]
[null,446,false,null,3,1438,false,0,0]
[null,447,false,null,1,1439,false,0,0]
[null,447,true,null,2,1440,false,0,0]
[null,447,false,null,3,1441,false,0,0]
[null,448,false,null,1,1442,false,0,0]
[null,448,true,null,2,1443,false,0,0]
[null,448,false,null,3,1444,false,0,0]
[null,449,false,null,1,1445,false,{"$f":"IF(AND(C1346,G1346),1,0)","v":0},{"$f":"IF(G1346,1,0)","v":0}]
[null,449,true,null,2,1446,false,0,0]
[null,449,false,null,3,1447,false,0,0]
[null,450,false,null,1,1448,false,0,0]
[null,450,true,null,2,1449,false,0,0]
[null,450,false,null,3,1450,false,0,0]
[null,451,false,null,1,1451,false,0,0]
[null,451,true,null,2,1452,false,0,0]
[null,451,false,null,3,1453,false,0,0]
[null,452,false,null,1,1454,false,0,0]
[null,452,true,null,2,1455,false,0,0]
[null,452,false,null,3,1456,false,0,0]
[null,453,false,null,1,1457,false,0,0]
[null,453,true,null,2,1458,false,0,0]
[null,453,false,null,3,1459,false,0,0]
[null,454,false,null,1,1460,false,0,0]
[null,454,true,null,2,1461,false,0,0]
[null,454,false,null,3,1462,false,0,0]
[null,455,false,null,1,1463,false,0,0]
[null,455,true,null,2,1464,false,0,0]
[null,455,false,null,3,1465,false,0,0]
[null,456,false,null,1,1466,false,0,0]
[null,456,true,null,2,1467,false,0,0]
[null,456,false,null,3,1468,false,0,0]
[null,457,false,null,1,1469,false,0,0]
[null,457,true,null,2,1470,false,0,0]
[null,457,false,null,3,1471,false,0,0]
[null,458,false,null,1,1472,false,0,0]
[null,458,true,null,2,1473,false,0,0]
[null,458,false,null,3,1474,false,0,0]
[null,459,false,null,1,1475,false,0,0]
[null,459,true,null,2,1476,false,0,0]
[null,459,false,null,3,1477,false,0,0]
[null,460,false,null,1,1478,false,0,0]
[null,460,true,null,2,1479,false,0,0]
[null,460,false,null,3,1480,false,0,0]
[null,461,false,null,1,1481,false,0,0]
[null,461,true,null,2,1482,false,0,0]
[null,461,false,null,3,1483,false,0,0]
[null,462,false,null,1,1484,false,0,0]
[null,462,true,null,2,1485,false,0,0]
[null,462,false,null,3,1486,false,0,0]
[null,463,false,null,1,1487,false,0,0]
[null,463,true,null,2,1488,false,0,0]
[null,463,false,null,3,1489,false,0,0]
[null,464,false,null,1,1490,false,0,0]
[null,464,true,null,2,1491,false,0,0]
[null,464,false,null,3,1492,false,0,0]
[null,465,false,null,1,1493,false,0,0]
[null,465,true,null,2,1494,false,0,0]
[null,465,false,null,3,1495,false,0,0]
[null,466,false,null,1,1496,false,0,0]
[null,466,true,null,2,1497,false,0,0]
[null,466,false,null,3,1498,false,0,0]
[null,467,false,null,1,1499,false,0,0]
[null,467,true,null,2,1500,false,0,0]
[null,467,false,null,3,1501,false,0,0]
[null,468,false,null,1,1502,false,0,0]
[null,468,true,null,2,1503,false,0,0]
[null,468,false,null,3,1504,false,0,0]
[null,469,false,null,1,1505,false,0,0]
[null,469,true,null,2,1506,false,0,0]
[null,469,false,null,3,1507,false,0,0]
[null,470,false,null,1,1508,false,0,0]
[null,470,true,null,2,1509,false,{"$f":"IF(AND(C1410,G1410),1,0)","v":0},{"$f":"IF(G1410,1,0)","v":0}]
[null,470,false,null,3,1510,false,0,0]
[null,471,false,null,1,1511,false,0,0]
[null,471,true,null,2,1512,false,0,0]
[null,471,false,null,3,1513,false,0,0]
[null,472,false,null,1,1514,false,0,0]
[null,472,true,null,2,1515,false,0,0]
[null,472,false,null,3,1516,false,0,0]
[null,473,false,null,1,1517,false,0,0]
[null,473,true,null,2,1518,false,0,0]
[null,473,false,null,3,1519,false,0,0]
[null,474,false,null,1,1520,false,0,0]
[null,474,true,null,2,1521,false,0,0]
[null,474,false,null,3,1522,false,0,0]
[null,475,false,null,1,1523,false,0,0]
[null,475,true,null,2,1524,false,0,0]
[null,475,false,null,3,1525,false,0,0]
[null,476,false,null,1,1526,false,0,0]
[null,476,true,null,2,1527,false,0,0]
[null,476,false,null,3,1528,false,0,0]
[null,477,false,null,1,1529,false,0,0]
[null,477,true,null,2,1530,false,0,0]
[null,477,false,null,3,1531,false,0,0]
[null,478,false,null,1,1532,false,0,0]
[null,478,true,null,2,1533,false,0,0]
[null,478,false,null,3,1534,false,0,0]
[null,479,false,null,1,1535,false,0,0]
[null,479,true,null,2,1536,false,0,0]
[null,479,false,null,3,1537,false,0,0]
[null,480,false,null,1,1538,false,0,0]
[null,480,true,null,2,1539,false,0,0]
[null,480,false,null,3,1540,false,0,0]
[null,481,false,null,1,1541,false,0,0]
[null,481,true,null,2,1542,false,0,0]
[null,481,false,null,3,1543,false,0,0]
[null,482,false,null,1,1544,false,0,0]
[null,482,true,null,2,1545,false,0,0]
[null,482,false,null,3,1546,false,0,0]
[null,483,false,null,1,1547,false,0,0]
[null,483,true,null,2,1548,false,0,0]
[null,483,false,null,3,1549,false,0,0]
[null,484,false,null,1,1550,false,0,0]
[null,484,true,null,2,1551,false,0,0]
[null,484,false,null,3,1552,false,0,0]
[null,485,false,null,1,1553,false,0,0]
[null,485,true,null,2,1554,false,0,0]
[null,485,false,null,3,1555,false,0,0]
[null,486,false,null,1,1556,false,0,0]
[null,486,true,null,2,1557,false,0,0]
[null,486,false,null,3,1558,false,0,0]
[null,487,false,null,1,1559,false,0,0]
[null,487,true,null,2,1560,false,0,0]
[null,487,false,null,3,1561,false,0,0]
[null,488,false,null,1,1562,false,0,0]
[null,488,true,null,2,1563,false,0,0]
[null,488,false,null,3,1564,false,0,0]
[null,489,false,null,1,1565,false,0,0]
[null,489,true,null,2,1566,false,0,0]
[null,489,false,null,3,1567,false,0,0]
[null,490,false,null,1,1568,false,0,0]
[null,490,true,null,2,1569,false,0,0]
[null,490,false,null,3,1570,false,0,0]
[null,491,false,null,1,1571,false,0,0]
[null,491,true,null,2,1572,false,0,0]
[null,491,false,null,3,1573,false,{"$f":"IF(AND(C1474,G1474),1,0)","v":0},{"$f":"IF(G1474,1,0)","v":0}]
[null,492,false,null,1,1574,false,0,0]
[null,492,true,null,2,1575,false,0,0]
[null,492,false,null,3,1576,false,0,0]
[null,493,false,null,1,1577,false,0,0]
[null,493,true,null,2,1578,false,0,0]
[null,493,false,null,3,1579,false,0,0]
[null,494,false,null,1,1580,false,0,0]
[null,494,true,null,2,1581,false,0,0]
[null,494,false,null,3,1582,false,0,0]
[null,495,false,null,1,1583,false,0,0]
[null,495,true,null,2,1584,false,0,0]
[null,495,false,null,3,1585,false,0,0]
[null,496,false,null,1,1586,false,0,0]
[null,496,true,null,2,1587,false,0,0]
[null,496,false,null,3,1588,false,0,0]
[null,497,false,null,1,1589,false,0,0]
[null,497,true,null,2,1590,false,0,0]
[null,497,false,null,3,1591,false,0,0]
[null,498,false,null,1,1592,false,0,0]
[null,498,true,null,2,1593,false,0,0]
[null,498,false,null,3,1594,false,0,0]
[null,499,false,null,1,1595,false,0,0]
[null,499,true,null,2,1596,false,0,0]
[null,499,false,null,3,1597,false,0,0]
[null,500,false,null,1,1598,false,0,0]
[null,500,true,null,2,1599,false,0,0]
[null,500,false,null,3,1600,false,0,0]

{"sheet":"List2","index":3,"n_rows":30,"n_cols":4,"rows_kept":30,"cut":false,"hidden":false,"merged":[[0,0,5,10]]}
[{"$f":"Setup!E4","v":"Generátor testových otázek pro základní kvalifikační stupeň \nodborné způsobilosti pojišťovacích zprostředkovatelů"}]
[]
[]
[]
[]
[]
[null,null,null,{"$f":"IF(Setup!B18,\"!!! REŽIM ŠKOLITELE !!!\",\"\")","v":""}]
[]
[]
["Před spuštěním testu je třeba mít v aplikaci MS Excel nastavenu střední úroveň zabezpečení maker a následně je třeba povolit makra."]
[]
[]
[]
[]
[]
[]
[]
[]
[]
[]
[]
[]
[]
[]
["Případné problémy s generátorem posílejte na adresu akademie@allianz.cz"]
[]
[]
[{"$f":"Setup!E6","v":"© Allianz pojišťovna, a. s., Allianz Akademie"}]
[{"$f":"Setup!E7","v":"Pouze pro vnitřní potřebu"}]
[{"$f":"\"Verze \"&Setup!E8","v":"Verze 2016.01"},null,{"$f":"\"Platnost omezena do \"& TEXT(Setup!B3-1,\"d.m.rrrr\")","v":"Platnost omezena do 9.1.2020"}]